Transaction Reference,Supplier Name,Line Value,Department,Category,Transaction Date,Year/Period,SME,Costs split between Babergh and Mid Suffolk District Councils Y/N,% of transaction apportioned to Mid Suffolk District Council
10043542,ADVANCED CONTROLS & MANAGEMENT SYSTEMS L,970,Sheltered Accommodation,Repairs,21-Oct-21,2122/07,SME,N,
10043067,ANGLIAN WATER,"1,571.40",Sheltered Accommodation,Water Rates - Metered,13-Sep-21,2122/07,LGE,N,
10043069,ANGLIAN WATER,287.35,Sheltered Accommodation,Water Rates - Unmetered,15-Sep-21,2122/07,LGE,N,
10043366,BINDER LTD,299.76,Sewage Treatment Works,Contracted Services,13-Oct-21,2122/07,SME,N,
10043367,BINDER LTD,209.76,Sewage Treatment Works,Contracted Services,12-Oct-21,2122/07,SME,N,
10043367,BINDER LTD,47.92,Sewage Treatment Works,Repairs,12-Oct-21,2122/07,SME,N,
10043424,BINDER LTD,749.76,Sewage Treatment Works,Contracted Services,18-Oct-21,2122/07,SME,N,
10043424,BINDER LTD,88.47,Sewage Treatment Works,Repairs,18-Oct-21,2122/07,SME,N,
10043425,BINDER LTD,299.76,Sewage Treatment Works,Contracted Services,18-Oct-21,2122/07,SME,N,
10043426,BINDER LTD,471.2,Sewage Treatment Works,Contracted Services,18-Oct-21,2122/07,SME,N,
10043426,BINDER LTD,47.92,Sewage Treatment Works,Repairs,18-Oct-21,2122/07,SME,N,
10043532,BINDER LTD,258,Sewage Treatment Works,Contracted Services,20-Oct-21,2122/07,SME,N,
10043217,BLUE FLAME (COLCHESTER) LTD,"24,381.47",Planned Maint - Heating,Property Servicing,29-Sep-21,2122/07,SME,N,
10043246,BLUE FLAME (COLCHESTER) LTD,"24,381.47",Planned Maint - Heating,Property Servicing,07-Oct-21,2122/07,SME,N,
20027616,BLUE FLAME (COLCHESTER) LTD,"37,969.19",Current Liabilities,Cert IBS Creditors Holding ac,06-Oct-21,2122/07,SME,N,
20027620,BLUE FLAME (COLCHESTER) LTD,"14,392.85",Current Liabilities,Cert IBS Creditors Holding ac,13-Oct-21,2122/07,SME,N,
20027630,BLUE FLAME (COLCHESTER) LTD,"21,318.74",Current Liabilities,Cert IBS Creditors Holding ac,20-Oct-21,2122/07,SME,N,
20027635,BLUE FLAME (COLCHESTER) LTD,"19,473.37",Current Liabilities,Cert IBS Creditors Holding ac,27-Oct-21,2122/07,SME,N,
10043065,BOTTOMLINE TECHNOLOGIES,863.59,ICT,Software Licnse (Line of Bus) ,27-Sep-21,2122/07,LGE,Y,50%
10043228,BOTTOMLINE TECHNOLOGIES,667.8,ICT,Software Licnse (Line of Bus) ,30-Sep-21,2122/07,LGE,Y,50%
10043136,BOWER FULLER,"1,837.20",Tenancy Services,Fire Prevention,24-Sep-21,2122/07,SME,N,
10043137,BOWER FULLER,"1,615.20",Tenancy Services,Fire Prevention,24-Sep-21,2122/07,SME,N,
10043138,BOWER FULLER,488.7,Sheltered Accommodation,Fire Prevention,24-Sep-21,2122/07,SME,N,
10043139,BOWER FULLER,"8,196.90",Sheltered Units-Gen.Imp,Improvements,24-Sep-21,2122/07,SME,N,
10043140,BOWER FULLER,"7,553.96",Sheltered Accommodation,Improvements,29-Sep-21,2122/07,SME,N,
10043022,CAPITA BUSINESS SERVICES LTD,"5,250.00",Building Services,Prof & Consultancy Fees,28-Sep-21,2122/07,LGE,Y,50%
10043022,CAPITA BUSINESS SERVICES LTD,"1,000.00",Tenancy Services,Software Licnse (Line of Bus) ,28-Sep-21,2122/07,LGE,Y,50%
10043423,AQUASAMPLERS,575,Water Sampling,Sampling & Analysis,30-Sep-21,2122/07,SME,N,
10043265,CHEQUERS HOTEL LTD,325,Homelessness Private Sector,B&B Costs,04-Oct-21,2122/07,SME,N,
10043270,CHEQUERS HOTEL LTD,455,Homelessness Private Sector,B&B Costs,04-Oct-21,2122/07,SME,N,
10043271,CHEQUERS HOTEL LTD,"1,137.50",Homelessness Private Sector,B&B Costs,04-Oct-21,2122/07,SME,N,
10043284,CHEQUERS HOTEL LTD,"1,137.50",Homelessness Private Sector,B&B Costs,04-Oct-21,2122/07,SME,N,
10043381,CLARKES OF WALSHAM LTD,"1,621.40",Building Services,Repairs,12-Aug-21,2122/07,SME,N,
10043161,D W ADAMS LTD,426.65,Council House Adaptions,Improvements,04-Oct-21,2122/07,SME,N,
10043241,D W ADAMS LTD,"1,549.00",Building Services,Repairs,06-Oct-21,2122/07,SME,N,
10043297,D W ADAMS LTD,587,Council House Adaptions,Improvements,11-Oct-21,2122/07,SME,N,
10043096,DMA HEALTH AND SAFETY LTD,360,Assets & Development,Prof & Consultancy Fees,30-Sep-21,2122/07,SME,N,
10043231,DMA HEALTH AND SAFETY LTD,420,Insulation Imps,Prof & Consultancy Fees,06-Oct-21,2122/07,SME,N,
10042999,ENGLISH SECURITY,42.5,Temporary Accommodation,Emergency Lighting,20-Sep-21,2122/07,SME,N,
10042999,ENGLISH SECURITY,62.5,Sheltered Accommodation,Emergency Lighting,20-Sep-21,2122/07,SME,N,
10042999,ENGLISH SECURITY,294.95,Building Services,Repairs,20-Sep-21,2122/07,SME,N,
10043015,ENGLISH SECURITY,308.85,Sheltered Accommodation,Fire Prevention,20-Sep-21,2122/07,SME,N,
10042993,ENVIROVENT LTD,709,Dampness & Condensation,Repairs,22-Sep-21,2122/07,SME,N,
10042995,ENVIROVENT LTD,709,Dampness & Condensation,Repairs,22-Sep-21,2122/07,SME,N,
10043018,ENVIROVENT LTD,460,Dampness & Condensation,Repairs,24-Sep-21,2122/07,SME,N,
10043054,ENVIROVENT LTD,460,Dampness & Condensation,Repairs,27-Sep-21,2122/07,SME,N,
10043104,ENVIROVENT LTD,813.08,Dampness & Condensation,Repairs,28-Sep-21,2122/07,SME,N,
10043105,ENVIROVENT LTD,460,Dampness & Condensation,Repairs,28-Sep-21,2122/07,SME,N,
10043291,FELGAINS CARE CENTRE,"2,603.00",Mand Disabled Facilities Grant,Grants,11-Oct-21,2122/07,SME,N,
10043085,FELLBRIDGE BUILDING SERVICES,"9,627.79",Building Services,Repairs,30-Sep-21,2122/07,SME,N,
10043086,FELLBRIDGE BUILDING SERVICES,"2,864.15",Building Services,Repairs,30-Sep-21,2122/07,SME,N,
10043173,FELLBRIDGE BUILDING SERVICES,"2,011.51",Building Services,Repairs,04-Oct-21,2122/07,SME,N,
10043298,FELLBRIDGE BUILDING SERVICES,337.22,Building Services,Repairs,11-Oct-21,2122/07,SME,N,
10043168,GB ADAPTIONS LTD,"5,975.00",Mand Disabled Facilities Grant,Grants,04-Oct-21,2122/07,SME,N,
10043175,GB ADAPTIONS LTD,"5,423.00",Mand Disabled Facilities Grant,Grants,04-Oct-21,2122/07,SME,N,
10043359,GB ADAPTIONS LTD,"4,308.00",Mand Disabled Facilities Grant,Grants,14-Oct-21,2122/07,SME,N,
10043661,GB ADAPTIONS LTD,"7,493.00",Mand Disabled Facilities Grant,Grants,28-Oct-21,2122/07,SME,N,
10042986,G4S CASH SOLUTIONS LTD,458.86,Financial Servs,Contracted Services,02-Apr-21,2122/07,LGE,N,
10042991,G4S CASH SOLUTIONS LTD,458.86,Financial Servs,Contracted Services,02-Jun-21,2122/07,LGE,N,
10043264,G4S CASH SOLUTIONS LTD,458.86,Financial Servs,Contracted Services,02-Aug-21,2122/07,LGE,N,
10043325,GHB ROOFING,"1,315.00",Building Services,Repairs,12-Oct-21,2122/07,SME,N,
10043326,GHB ROOFING,840,Building Services,Repairs,12-Oct-21,2122/07,SME,N,
10043010,HAYES DIGGINS BUILDERS,"2,500.00",Building Services,BMBS Repairs Work,13-Sep-21,2122/07,SME,N,
10043230,HAYES DIGGINS BUILDERS,"9,515.00",Assets & Development,Repairs,05-Oct-21,2122/07,SME,N,
10043486,HEMMING GROUP LTD,590,Governance,Conference Expenses,20-Oct-21,2122/07,SME,N,
10043165,JMP SERVICES LTD,400,Street & Major Road Cleansing,Contracted Services,04-Oct-21,2122/07,SME,N,
10043016,KEN GRIME & SON LTD,892.89,Building Services,Repairs,27-Sep-21,2122/07,SME,N,
10043124,KEYWAYS THE LOCKSMITHS LTD,487,Temporary Accommodation,"Equipment, Tools & Materials",01-Oct-21,2122/07,SME,N,
10042658,M & H CIVIL ENGINEERING LTD,"1,458.80",Building Services,Repairs,08-Sep-21,2122/07,SME,N,
10043030,M & H CIVIL ENGINEERING LTD,472.55,Building Services,Repairs,23-Aug-21,2122/07,SME,N,
10043235,M & H CIVIL ENGINEERING LTD,610.5,Building Services,Repairs,06-Oct-21,2122/07,SME,N,
10043182,MATERIAL CHANGE COMPOSTING LTD,962.61,Open Spaces,Waste Disposal,30-Sep-21,2122/07,LGE,N,
10043103,MB TREES (EAST ANGLIA) LTD,"1,405.00",Public Tree Programme,Tree felling/maintenance,30-Sep-21,2122/07,SME,N,
10043628,MB TREES (EAST ANGLIA) LTD,620,Amenity Areas,Tree felling/maintenance,26-Oct-21,2122/07,SME,N,
10043252,MERCURY BUILDING SERVICES LTD,508,Kingfisher Leisure Centre,Repairs,06-Oct-21,2122/07,SME,N,
10043252,MERCURY BUILDING SERVICES LTD,"2,260.00",Hadleigh Pool,Repairs,06-Oct-21,2122/07,SME,N,
10043353,MONTHIND CLEAN LTD,624.43,Jnt Waste Contract,General Cleaning,15-Oct-21,2122/07,LGE,Y,50%
10043071,NEW LOCAL,"6,500.00",Management Team,Subscriptions,06-Apr-21,2122/07,LGE,Y,50%
10042790,ORWELL HOUSING ASSOCIATION LTD,"353,627.65","Mackenzie Place, Cockfield",Prof & Consultancy Fees,16-Sep-21,2122/07,LGE,N,
10042870,ORWELL HOUSING ASSOCIATION LTD,353.48,Sheltered Accommodation,Grds Maint Contract,20-Sep-21,2122/07,LGE,N,
10042871,ORWELL HOUSING ASSOCIATION LTD,471.32,Sheltered Accommodation,Grds Maint Contract,20-Sep-21,2122/07,LGE,N,
10043160,ORWELL HOUSING ASSOCIATION LTD,545.52,Sheltered Accommodation,Contracted Services,30-Sep-21,2122/07,LGE,N,
10043323,ORWELL HOUSING ASSOCIATION LTD,"149,229.48","Mackenzie Place, Cockfield",Prof & Consultancy Fees,13-Oct-21,2122/07,LGE,N,
10043237,PITMAN BROTHERS (DECORATORS) LTD,"2,350.00",Building Services,Repairs,06-Oct-21,2122/07,SME,N,
10043052,PRO-FLAT SPECIALIST SERVICES LTD,"2,466.00",Building Services,Repairs,28-Sep-21,2122/07,SME,N,
10043109,PRO-FLAT SPECIALIST SERVICES LTD,"8,890.00",Building Services,Repairs,30-Sep-21,2122/07,SME,N,
10043110,PRO-FLAT SPECIALIST SERVICES LTD,465,Roofing,Improvements,30-Sep-21,2122/07,SME,N,
10043019,REID PLUMBING & HEATING CONTRACTORS LTD,"9,345.56",Central Heating,Major Contracts,28-Sep-21,2122/07,SME,N,
10043180,REID PLUMBING & HEATING CONTRACTORS LTD,"20,146.49",Central Heating,Major Contracts,05-Oct-21,2122/07,SME,N,
10043208,REID PLUMBING & HEATING CONTRACTORS LTD,"9,203.25",Central Heating,Major Contracts,04-Oct-21,2122/07,SME,N,
10043330,REID PLUMBING & HEATING CONTRACTORS LTD,"5,202.37",Central Heating,Major Contracts,13-Oct-21,2122/07,SME,N,
10043481,REID PLUMBING & HEATING CONTRACTORS LTD,"20,860.94",Central Heating,Major Contracts,20-Oct-21,2122/07,SME,N,
10043667,SEAGER HOME SOLUTIONS,"7,295.00",Mand Disabled Facilities Grant,Grants,28-Oct-21,2122/07,SME,N,
10043365,SOLUTIONS ON SECURITY SERVICES,475,Sheltered Accommodation,Repairs,14-Oct-21,2122/07,SME,N,
10043315,SSI SCHAEFER LTD,"15,921.00",Bins,Bins,12-Oct-21,2122/07,SME,Y,50%
10043479,SUFFOLK TREE SERVICES LTD,350,Public Tree Programme,Tree felling/maintenance,18-Oct-21,2122/07,SME,N,
10043485,SUFFOLK TREE SERVICES LTD,400,Tenancy Services,Tree felling/maintenance,20-Oct-21,2122/07,SME,N,
10043613,SUFFOLK TREE SERVICES LTD,"2,300.00",Amenity Areas,Tree felling/maintenance,19-Oct-21,2122/07,SME,N,
10043614,SUFFOLK TREE SERVICES LTD,"1,950.00",Amenity Areas,Tree felling/maintenance,26-Oct-21,2122/07,SME,N,
10043132,SUREFIX,750,Building Services,Repairs,24-Sep-21,2122/07,SME,N,
10043198,SUREFIX,718.25,Building Services,Repairs,30-Sep-21,2122/07,SME,N,
10043199,SUREFIX,421.92,Building Services,Repairs,29-Sep-21,2122/07,SME,N,
10043279,SUREFIX,"8,085.00",Window & Door Rplcmts,Improvements,08-Oct-21,2122/07,SME,N,
10043397,SUREFIX,750,Building Services,Repairs,13-Oct-21,2122/07,SME,N,
10043408,SUREFIX,950,Building Services,Repairs,14-Oct-21,2122/07,SME,N,
10043558,SUREFIX,800,Building Services,Repairs,20-Oct-21,2122/07,SME,N,
10043559,SUREFIX,750,Building Services,Repairs,20-Oct-21,2122/07,SME,N,
10042541,THE PLAY INSPECTION COMPANY LTD,"2,460.20",Street & Major Road Cleansing,"Equipment, Tools & Materials",31-Aug-21,2122/07,SME,N,
10043073,THERMATECH,"1,000.00",Sheltered Accommodation,Fire Prevention,29-Sep-21,2122/07,SME,N,
10043074,THERMATECH,525,Sheltered Accommodation,Fire Prevention,29-Sep-21,2122/07,SME,N,
10043075,THERMATECH,275,Temporary Accommodation,Fire Prevention,29-Sep-21,2122/07,SME,N,
10043561,THERMATECH,425,Business Cont/Emergency Plan,Fire Prevention,22-Oct-21,2122/07,SME,N,
10043562,THERMATECH,275,Tenancy Services,Fire Prevention,22-Oct-21,2122/07,SME,N,
10043088,WILES CONTRACTORS LIMITED,"4,157.00",Estate Imps/parking areas,Improvements,29-Sep-21,2122/07,SME,N,
10043177,ARCHANT COMMUNITY MEDIA LTD,525,Devt Management -Applications,Advertising&mkting (non-staff),30-Sep-21,2122/07,LGE,N,
10043178,ARCHANT COMMUNITY MEDIA LTD,648.9,Devt Management -Applications,Advertising&mkting (non-staff),25-Sep-21,2122/07,LGE,N,
10043318,ARCHANT COMMUNITY MEDIA LTD,447.48,Civil Parking Enforcement,Advertising&mkting (non-staff),11-Oct-21,2122/07,LGE,N,
10043420,ARCHANT COMMUNITY MEDIA LTD,410.97,Devt Management -Applications,Advertising&mkting (non-staff),11-Oct-21,2122/07,LGE,N,
10043602,ARCHANT COMMUNITY MEDIA LTD,410.97,Devt Management -Applications,Advertising&mkting (non-staff),23-Oct-21,2122/07,LGE,N,
10042895,ESSEX COUNTY COUNCIL,"1,801.00",Conservation,Prof & Consultancy Fees,22-Sep-21,2122/07,LGE,N,
10042906,ESSEX COUNTY COUNCIL,744,Devt Management -Applications,(Urban) Design  Consultancy,09-Sep-21,2122/07,LGE,N,
10043327,CHUBB FIRE & SECURITY LTD,"2,481.10",Tenancy Services,Community Alarm Costs,23-Aug-21,2122/07,LGE,N,
10042770,IDOX SOFTWARE LTD,"3,175.00",Info Mgmt,Contracted Services,15-Sep-21,2122/07,SME,Y,50%
20027632,IPSWICH BOROUGH COUNCIL,"17,186.00",COVID Housing Fund,Misc Supplies & Services Costs,03-Sep-21,2122/07,LGE,N,
20027627,EDF ENERGY,80.85,Belle Vue House,Electricity,15-Oct-21,2122/07,LGE,N,
20027627,EDF ENERGY,863.56,C Parks General,Electricity,15-Oct-21,2122/07,LGE,N,
20027627,EDF ENERGY,4.33,Calais St Depot,Electricity,15-Oct-21,2122/07,LGE,N,
20027627,EDF ENERGY,782.15,Chilton Depot,Electricity,15-Oct-21,2122/07,LGE,Y,50%
20027627,EDF ENERGY,276.03,Climate Change and Sustainabil,Electricity,15-Oct-21,2122/07,LGE,N,
20027627,EDF ENERGY,87.28,Community Safety-CCTV,Electricity,15-Oct-21,2122/07,LGE,N,
20027627,EDF ENERGY,12.39,Hadl Market,Electricity,15-Oct-21,2122/07,LGE,N,
20027627,EDF ENERGY,"3,637.77",Hadleigh Pool,Electricity,15-Oct-21,2122/07,LGE,N,
20027627,EDF ENERGY,12.18,Headquarters General,Electricity,15-Oct-21,2122/07,LGE,N,
20027627,EDF ENERGY,670.2,HQ Energy,Electricity,15-Oct-21,2122/07,LGE,N,
20027627,EDF ENERGY,233.46,Public Conveniences,Electricity,15-Oct-21,2122/07,LGE,N,
20027627,EDF ENERGY,96.18,Sewage Treatment Works,Electricity,15-Oct-21,2122/07,LGE,N,
20027627,EDF ENERGY,"7,347.29",Sheltered Accommodation,Electricity,15-Oct-21,2122/07,LGE,N,
20027627,EDF ENERGY,142.99,SP Comm Alarms (Non-SH),Electricity,15-Oct-21,2122/07,LGE,N,
20027627,EDF ENERGY,269.71,Temporary Accommodation,Electricity,15-Oct-21,2122/07,LGE,N,
20027627,EDF ENERGY,"3,579.71",Tenancy Services,Electricity,15-Oct-21,2122/07,LGE,N,
20027627,EDF ENERGY,5.93,Wenham Depot,Electricity,15-Oct-21,2122/07,LGE,N,
20027629,EDF ENERGY,"5,132.42",Hadleigh Pool,Electricity,20-Oct-21,2122/07,LGE,N,
20027631,GPC BARCLAYS,"2,996.58",Current Assets,Barclaycard Control,16-Oct-21,2122/07,LGE,Y,30%
20027634,COMPUTERSHARE ,859,Current Assets,ChildCare Vouchers-Control,25-Oct-21,2122/07,LGE,N,
20027583,ACTON PARISH COUNCIL,"110,354.63",Current Liabilities,Parish Payments Available,05-Oct-21,2122/07,SME,N,
20027584,ASSINGTON PARISH COUNCIL,"15,033.73",Current Liabilities,Parish Payments Available,05-Oct-21,2122/07,SME,N,
20027585,BRENT ELEIGH PARISH COUNCIL,380.34,Current Liabilities,Parish Payments Available,05-Oct-21,2122/07,SME,N,
20027586,BRETTENHAM PARISH COUNCIL,"6,463.12",Current Liabilities,Parish Payments Available,05-Oct-21,2122/07,SME,N,
20027587,CAPEL ST MARY PARISH COUNCIL,"37,939.28",Current Liabilities,Parish Payments Available,05-Oct-21,2122/07,SME,N,
20027596,CHATTISHAM & HINTLESHAM PARISH COUNCIL,"18,499.95",Current Liabilities,Parish Payments Available,05-Oct-21,2122/07,SME,N,
20027588,COCKFIELD PARISH COUNCIL,"15,805.74",Current Liabilities,Parish Payments Available,05-Oct-21,2122/07,SME,N,
20027589,COPDOCK & WASHBROOK PARISH COUNCIL,"4,122.85",Current Liabilities,Parish Payments Available,05-Oct-21,2122/07,SME,N,
20027590,EAST BERGHOLT PARISH COUNCIL,"3,782.15",Current Liabilities,Parish Payments Available,05-Oct-21,2122/07,SME,N,
20027591,ELMSETT PARISH COUNCIL,"3,760.27",Current Liabilities,Parish Payments Available,05-Oct-21,2122/07,SME,N,
20027592,GLEMSFORD PARISH COUNCIL,"2,529.69",Current Liabilities,Parish Payments Available,05-Oct-21,2122/07,SME,N,
20027593,GREAT CORNARD PARISH COUNCIL,"15,428.34",Current Liabilities,Parish Payments Available,05-Oct-21,2122/07,SME,N,
10043549,HADLEIGH TOWN COUNCIL,"1,200.00",Grants & Contrbns,Contributions & Donations,22-Oct-21,2122/07,SME,N,
20027594,HADLEIGH TOWN COUNCIL,"8,813.90",Current Liabilities,Parish Payments Available,05-Oct-21,2122/07,SME,N,
20027595,HARTEST PARISH COUNCIL,865.29,Current Liabilities,Parish Payments Available,05-Oct-21,2122/07,SME,N,
20027597,HITCHAM PARISH COUNCIL,"5,098.99",Current Liabilities,Parish Payments Available,05-Oct-21,2122/07,SME,N,
20027598,LAVENHAM PARISH COUNCIL,"42,288.96",Current Liabilities,Parish Payments Available,05-Oct-21,2122/07,SME,N,
20027599,LAWSHALL PARISH COUNCIL,"5,553.51",Current Liabilities,Parish Payments Available,05-Oct-21,2122/07,SME,N,
20027600,LEAVENHEATH PARISH COUNCIL,"7,513.44",Current Liabilities,Parish Payments Available,05-Oct-21,2122/07,SME,N,
20027601,LINDSEY PARISH COUNCIL,293.97,Current Liabilities,Parish Payments Available,05-Oct-21,2122/07,SME,N,
20027602,NAYLAND WITH WISSINGTON PARISH COUNCIL,"8,708.19",Current Liabilities,Parish Payments Available,05-Oct-21,2122/07,SME,N,
20027603,NEDGING WITH NAUGHTON PARISH COUNCIL,"8,187.12",Current Liabilities,Parish Payments Available,05-Oct-21,2122/07,SME,N,
10043626,NEW ANGLIA LOCAL ENTERPRISE PARTNERSHIP,"301,711.37",Enterprise Zones,Contributions to other Bodies,26-Oct-21,2122/07,SME,N,
10043564,NEWTON PARISH COUNCIL,"61,182.27",CIL Funded REFCUS,Grants,22-Oct-21,2122/07,SME,N,
20027604,NEWTON PARISH COUNCIL,"11,424.87",Current Liabilities,Parish Payments Available,05-Oct-21,2122/07,SME,N,
20027605,RAYDON PARISH COUNCIL,"15,346.11",Current Liabilities,Parish Payments Available,05-Oct-21,2122/07,SME,N,
20027606,SHIMPLING PARISH COUNCIL,"1,970.63",Current Liabilities,Parish Payments Available,05-Oct-21,2122/07,SME,N,
20027607,SPROUGHTON PARISH COUNCIL,"4,838.10",Current Liabilities,Parish Payments Available,05-Oct-21,2122/07,SME,N,
20027608,STANSTEAD PARISH COUNCIL,"7,955.54",Current Liabilities,Parish Payments Available,05-Oct-21,2122/07,SME,N,
20027609,STUTTON PARISH COUNCIL,"19,750.41",Current Liabilities,Parish Payments Available,05-Oct-21,2122/07,SME,N,
10043531,SUDBURY TOWN COUNCIL,288.4,Sheltered Accommodation,General Cleaning,21-Oct-21,2122/07,SME,N,
10043552,SUDBURY TOWN COUNCIL,"1,500.00",Grants & Contrbns,Contributions & Donations,22-Oct-21,2122/07,SME,N,
20027610,SUDBURY TOWN COUNCIL,"4,267.44",Current Liabilities,Parish Payments Available,05-Oct-21,2122/07,SME,N,
20027611,TATTINGSTONE PARISH COUNCIL,"7,485.48",Current Liabilities,Parish Payments Available,05-Oct-21,2122/07,SME,N,
10043567,WHERSTEAD PARISH COUNCIL,"1,000.00",Grants & Contrbns,Contributions & Donations,22-Oct-21,2122/07,SME,N,
20027612,WHERSTEAD PARISH COUNCIL,"19,263.57",Current Liabilities,Parish Payments Available,05-Oct-21,2122/07,SME,N,
20027613,WOOLVERSTONE PARISH COUNCIL,338.34,Current Liabilities,Parish Payments Available,05-Oct-21,2122/07,SME,N,
10042823,SUFFOLK COUNTY COUNCIL,"4,759.70",ICT,Photocopying,16-Sep-21,2122/07,LGE,Y,50%
10043334,SUFFOLK COUNTY COUNCIL,"17,439.15",Domestic Waste,MRF Disposal,13-Oct-21,2122/07,LGE,N,
10043334,SUFFOLK COUNTY COUNCIL,"15,909.51",Garden Waste,Garden Waste Disposal,13-Oct-21,2122/07,LGE,N,
10043483,SUFFOLK COUNTY COUNCIL,500,Garden Waste,Garden Waste Disposal,19-Oct-21,2122/07,LGE,N,
10043484,SUFFOLK COUNTY COUNCIL,892.41,General Rechargeable Works,Misc Supplies & Services Costs,19-Oct-21,2122/07,LGE,N,
10043536,SUFFOLK COUNTY COUNCIL,"1,910.00",Pre App Charging,Highways  Consultancy,21-Oct-21,2122/07,LGE,N,
10043537,SUFFOLK COUNTY COUNCIL,263,Pre App Charging,Prof & Consultancy Fees,21-Oct-21,2122/07,LGE,N,
10043098,FENN WRIGHT LLP,450,General/Supervision & Mgmt,Prof & Consultancy Fees,30-Sep-21,2122/07,SME,N,
10043152,REED SPECIALIST RECRUITMENT LTD,764.37,Financial Servs,Agency Staff,01-Oct-21,2122/07,LGE,Y,50%
10043157,REED SPECIALIST RECRUITMENT LTD,609.66,Governance,Agency Staff,24-Sep-21,2122/07,LGE,Y,50%
10043158,REED SPECIALIST RECRUITMENT LTD,677.4,Governance,Agency Staff,24-Sep-21,2122/07,LGE,Y,50%
10043159,REED SPECIALIST RECRUITMENT LTD,880.61,Governance,Agency Staff,24-Sep-21,2122/07,LGE,Y,50%
10043295,REED SPECIALIST RECRUITMENT LTD,447.53,Financial Servs,Agency Staff,03-Sep-21,2122/07,LGE,Y,50%
10043310,REED SPECIALIST RECRUITMENT LTD,835.46,Governance,Agency Staff,01-Oct-21,2122/07,LGE,Y,50%
10043311,REED SPECIALIST RECRUITMENT LTD,666.11,Governance,Agency Staff,01-Oct-21,2122/07,LGE,Y,50%
10043317,REED SPECIALIST RECRUITMENT LTD,745.88,Financial Servs,Agency Staff,01-Oct-21,2122/07,LGE,Y,50%
10043401,REED SPECIALIST RECRUITMENT LTD,298.35,Financial Servs,Agency Staff,18-Oct-21,2122/07,LGE,Y,50%
10043428,REED SPECIALIST RECRUITMENT LTD,835.46,Governance,Agency Staff,08-Oct-21,2122/07,LGE,Y,50%
10043429,REED SPECIALIST RECRUITMENT LTD,688.69,Governance,Agency Staff,08-Oct-21,2122/07,LGE,Y,50%
10043430,REED SPECIALIST RECRUITMENT LTD,869.33,Governance,Agency Staff,08-Oct-21,2122/07,LGE,Y,50%
10043569,REED SPECIALIST RECRUITMENT LTD,745.88,Financial Servs,Agency Staff,15-Oct-21,2122/07,LGE,Y,50%
10043591,REED SPECIALIST RECRUITMENT LTD,835.46,Governance,Agency Staff,15-Oct-21,2122/07,LGE,Y,50%
10043592,REED SPECIALIST RECRUITMENT LTD,871.14,Governance,Agency Staff,15-Oct-21,2122/07,LGE,Y,50%
10043596,REED SPECIALIST RECRUITMENT LTD,835.46,Governance,Agency Staff,15-Oct-21,2122/07,LGE,Y,50%
10043240,LACY SCOTT & KNIGHT,"1,000.00",New Bld/acquisition,Prof & Consultancy Fees,06-Oct-21,2122/07,SME,N,
10043377,LEX AUTOLEASE,341.04,Building Services,Lease Cars - Payment,10-Aug-21,2122/07,SME,Y,50%
10043378,LEX AUTOLEASE,321.55,Building Services,Lease Cars - Payment,10-Aug-21,2122/07,SME,Y,50%
10043384,LEX AUTOLEASE,335.42,Building Services,Lease Cars - Payment,10-Aug-21,2122/07,SME,Y,50%
10043385,LEX AUTOLEASE,357.81,Building Services,Lease Cars - Payment,11-Aug-21,2122/07,SME,Y,50%
10043388,LEX AUTOLEASE,"3,779.28",Building Services,Lease Cars - Payment,01-Sep-21,2122/07,SME,Y,50%
10042820,CIVICA UK LIMITED,"9,760.73",ICT,Software Licnse (Line of Bus) ,17-Sep-21,2122/07,LGE,N,
20027618,HADLEIGH UNITED REFORMED CHURCH,"2,875.00",Temporary Accommodation,Rent Payable,07-Oct-21,2122/07,SME,N,
20027619,HADLEIGH UNITED REFORMED CHURCH,"2,875.00",Temporary Accommodation,Rent Payable,07-Oct-21,2122/07,SME,N,
20027633,GAZPROM ENERGY,67.79,Belle Vue House,Gas,25-Oct-21,2122/07,SME,N,
20027633,GAZPROM ENERGY,"1,747.10",Hadleigh Pool,Gas,25-Oct-21,2122/07,SME,N,
20027633,GAZPROM ENERGY,35.97,HQ Energy,Gas,25-Oct-21,2122/07,SME,N,
20027633,GAZPROM ENERGY,"2,637.57",Kingfisher Leisure Centre,Gas,25-Oct-21,2122/07,SME,N,
20027633,GAZPROM ENERGY,"1,830.03",Sheltered Accommodation,Gas,25-Oct-21,2122/07,SME,N,
20027633,GAZPROM ENERGY,74.25,Temporary Accommodation,Gas,25-Oct-21,2122/07,SME,N,
10043528,SUDBURY & DISTRICT CAB,"13,375.00",Grants & Contrbns,Grants,21-Oct-21,2122/07,SME,N,
10043497,GREENWAYS COUNTRYSIDE PROJECT,"5,500.00",The Greenways Project,Contributions & Donations,13-Oct-21,2122/07,SME,N,
10043568,KERNOS CENTRE,"1,500.00",Grants & Contrbns,Contributions & Donations,22-Oct-21,2122/07,SME,N,
10043493,THE QUAY THEATRE AT SUDBURY,"11,500.00",Grants & Contrbns,Grants,20-Oct-21,2122/07,SME,N,
10042576,WHYBROW PROPERTY SOLUTIONS LTD,"5,558.08",Building Services,Repairs,03-Sep-21,2122/07,SME,N,
10042970,WHYBROW PROPERTY SOLUTIONS LTD,904,General/Supervision & Mgmt,Contracted Services,22-Sep-21,2122/07,SME,N,
10042982,WHYBROW PROPERTY SOLUTIONS LTD,750,Building Services,Repairs,22-Sep-21,2122/07,SME,N,
10042994,WHYBROW PROPERTY SOLUTIONS LTD,425,Building Services,Repairs,22-Sep-21,2122/07,SME,N,
10042998,WHYBROW PROPERTY SOLUTIONS LTD,"1,218.04",Building Services,Repairs,22-Sep-21,2122/07,SME,N,
10043011,WHYBROW PROPERTY SOLUTIONS LTD,"3,105.95",Kitchens/Bathrooms,Improvements,10-Sep-21,2122/07,SME,N,
10043064,WHYBROW PROPERTY SOLUTIONS LTD,328,Building Services,Repairs,22-Sep-21,2122/07,SME,N,
10043128,WHYBROW PROPERTY SOLUTIONS LTD,"4,331.45",Building Services,Repairs,30-Sep-21,2122/07,SME,N,
10043550,WHYBROW PROPERTY SOLUTIONS LTD,"7,000.00",Council House Adaptions,Improvements,22-Oct-21,2122/07,SME,N,
10043565,WHYBROW PROPERTY SOLUTIONS LTD,"1,250.00",Structural Works,Prof & Consultancy Fees,22-Oct-21,2122/07,SME,N,
10043042,L A C CLEANING CONTRACTORS LIMITED,835,Wenham Depot TDP,General Cleaning,24-Sep-21,2122/07,SME,Y,50%
10043480,L A C CLEANING CONTRACTORS LIMITED,"3,365.50",Tenancy Services,Contracted Services,19-Oct-21,2122/07,SME,N,
10043520,L A C CLEANING CONTRACTORS LIMITED,718.21,Wenham Depot TDP,General Cleaning,20-Oct-21,2122/07,SME,Y,50%
10043521,L A C CLEANING CONTRACTORS LIMITED,633.33,Sheltered Accommodation,General Cleaning,20-Oct-21,2122/07,SME,N,
10043218,ARMSTRONG YORK ASBESTOS ENVIRONMENTAL,"7,360.02",Asbestos Survey & Reinspection,Prof & Consultancy Fees,30-Sep-21,2122/07,SME,N,
10043380,ARMSTRONG YORK ASBESTOS ENVIRONMENTAL,387.9,Asbestos,Improvements,02-Feb-21,2122/07,SME,N,
10043642,SUFFOLK CHAMBER OF COMMERCE,850,Management Team,Subscriptions,01-Jul-21,2122/07,SME,N,
10043606,LONDON SOUTH BANK UNIVERSITY,"6,935.00",Organisational Devt,Training,08-Oct-21,2122/07,LGE,Y,50%
10043156,OPUS PEOPLE SOLUTIONS LTD,850.51,Current Liabilities,Agency Staff Holding A/C,30-Sep-21,2122/07,SME,N,
10043312,OPUS PEOPLE SOLUTIONS LTD,798.07,Current Liabilities,Agency Staff Holding A/C,07-Oct-21,2122/07,SME,N,
10043441,OPUS PEOPLE SOLUTIONS LTD,827.74,Current Liabilities,Agency Staff Holding A/C,14-Oct-21,2122/07,SME,N,
10043601,OPUS PEOPLE SOLUTIONS LTD,"1,303.94",Current Liabilities,Agency Staff Holding A/C,21-Oct-21,2122/07,SME,N,
10043127,CORNERSTONE BARRISTERS,"1,200.00",Devt Policy & Local Plans,Misc Legal Expenses,23-Sep-21,2122/07,SME,Y,50%
10043272,CORNERSTONE BARRISTERS,"1,000.00",Devt Management -Applications,Legal Expenses,08-Oct-21,2122/07,SME,N,
10043214,ANNETTE FEENEY,"6,214.00",Devt Policy & Local Plans,Prof & Consultancy Fees,01-Oct-21,2122/07,ST,Y,50%
10043336,UNIVERSITY OF THE WEST OF ENGLAND,"4,000.00",Strategic Planning General,Conference Expenses,01-Oct-21,2122/07,LGE,Y,50%
10043277,VERTAS GROUP LTD,"10,368.00",Unapportionable Central OHs,Security Systems,30-Sep-21,2122/07,SME,N,
10043300,VERTAS GROUP LTD,"9,855.91",Central Postal Serv,Postage,11-Oct-21,2122/07,SME,Y,50%
10042969,COLLINS SKIP HIRE,270.83,Building Services,Waste Disposal,27-Sep-21,2122/07,SME,Y,50%
10043107,COLLINS SKIP HIRE,541.66,Building Services,Waste Disposal,30-Sep-21,2122/07,SME,Y,50%
10043281,COLLINS SKIP HIRE,270.83,Building Services,Waste Disposal,11-Oct-21,2122/07,SME,Y,50%
10043412,COLLINS SKIP HIRE,541.66,Building Services,Waste Disposal,18-Oct-21,2122/07,SME,Y,50%
10043413,MATT ALLMAN LTD T/A MOVEITCLEARITFINDIT,"1,400.00",Tenancy Services,Removal Expenses,29-Aug-21,2122/07,SME,N,
10043238,SUFFOLK MARKET EVENTS,500,Economy & Business,Prof & Consultancy Fees,06-Oct-21,2122/07,SME,N,
10043543,SUFFOLK MARKET EVENTS,416.56,RHSSF,"Equipment, Tools & Materials",22-Oct-21,2122/07,SME,Y,50%
10043543,SUFFOLK MARKET EVENTS,416.74,Innovate Local SIGIF,Misc Supplies & Services Costs,22-Oct-21,2122/07,SME,Y,50%
10043543,SUFFOLK MARKET EVENTS,166.7,BRRP-MarketTownVision&Invest,Prof & Consultancy Fees,22-Oct-21,2122/07,SME,Y,50%
10043223,PRESTON ST MARY VILLAGE HALL COMMITTEE,"5,407.58",Comm Devt Grants,Grants,05-Oct-21,2122/07,SME,N,
10043607,PRESTON ST MARY VILLAGE HALL COMMITTEE,"7,888.41",CIL Funded REFCUS,Grants,25-Oct-21,2122/07,SME,N,
10043259,HAYS SPECIALIST RECRUITMENT LTD,573.32,HRA Accountancy,Agency Staff,07-Oct-21,2122/07,LGE,Y,50%
10043357,HAYS SPECIALIST RECRUITMENT LTD,"1,090.86",HRA Accountancy,Agency Staff,14-Oct-21,2122/07,LGE,Y,50%
10043506,HAYS SPECIALIST RECRUITMENT LTD,"1,146.64",HRA Accountancy,Agency Staff,21-Oct-21,2122/07,LGE,Y,50%
10043213,RICHARD UTTING ASSOCIATES LLP,"1,806.72",New Bld/acquisition,Purchase of Land & Buildings,05-Oct-21,2122/07,SME,N,
10043213,RICHARD UTTING ASSOCIATES LLP,"1,298.28","Wolsey Grange, Sproughton S106",Prof & Consultancy Fees,05-Oct-21,2122/07,SME,N,
10043059,IDVERDE LIMITED,"14,117.16",Amenity Areas,Grds Maint Contract,29-Sep-21,2122/07,SME,N,
10043059,IDVERDE LIMITED,315.45,C Parks General,Grds Maint Contract,29-Sep-21,2122/07,SME,N,
10043059,IDVERDE LIMITED,60.3,Chilton Depot,Grds Maint Contract,29-Sep-21,2122/07,SME,Y,50%
10043059,IDVERDE LIMITED,411.58,Hadl C Parks,Grds Maint Contract,29-Sep-21,2122/07,SME,N,
10043059,IDVERDE LIMITED,4.37,Hadl Market,Grds Maint Contract,29-Sep-21,2122/07,SME,N,
10043059,IDVERDE LIMITED,83.88,Industrial Estates,Grds Maint Contract,29-Sep-21,2122/07,SME,N,
10043059,IDVERDE LIMITED,177.39,Kingfisher Leisure Centre,Grds Maint Contract,29-Sep-21,2122/07,SME,N,
10043059,IDVERDE LIMITED,141.55,Nyld & Sprtn Clsd Burial Grds,Grds Maint Contract,29-Sep-21,2122/07,SME,N,
10043059,IDVERDE LIMITED,"30,076.15",Open Spaces,Grds Maint Contract,29-Sep-21,2122/07,SME,N,
10043059,IDVERDE LIMITED,22.72,Pin Mill C Park,Grds Maint Contract,29-Sep-21,2122/07,SME,N,
10043059,IDVERDE LIMITED,"3,303.05",Public Conveniences,Grds Maint Contract,29-Sep-21,2122/07,SME,N,
10043059,IDVERDE LIMITED,18.24,Sewage Treatment Works,Grds Maint Contract,29-Sep-21,2122/07,SME,N,
10043059,IDVERDE LIMITED,766.63,Sheltered Accommodation,Grds Maint Contract,29-Sep-21,2122/07,SME,N,
10043059,IDVERDE LIMITED,"37,074.48",Street & Major Road Cleansing,Grds Maint Contract,29-Sep-21,2122/07,SME,N,
10043059,IDVERDE LIMITED,809.16,Sudb C Parks,Grds Maint Contract,29-Sep-21,2122/07,SME,N,
10043352,PUBLIC SEWER SERVICES,785.28,Building Services,Repairs,30-Sep-21,2122/07,SME,N,
20027644,FRIENDS OF GLEMSFORD SCHOOL,456.62,Bring Sites,Contributions & Donations,28-Oct-21,2122/07,SME,N,
10043278,ASPECT CONTRACTS LTD,"9,740.00",Asbestos,Improvements,30-Sep-21,2122/07,LGE,N,
10043492,GREAT CORNARD SPORTS CENTRE,"6,000.00",Grants & Contrbns,Grants,20-Oct-21,2122/07,SME,N,
10043545,KNOWLES ASSOCIATES TFM LTD,"1,155.83",Building Services,Lease Cars - Payment,01-Sep-21,2122/07,SME,Y,50%
10043545,KNOWLES ASSOCIATES TFM LTD,7.92,RHSSF,"Equipment, Tools & Materials",01-Sep-21,2122/07,SME,N,
10043371,NORTHUMBRIAN WATER LTD,63.05,Chilton Depot,Legionella Testing,28-Sep-21,2122/07,LGE,Y,50%
10043371,NORTHUMBRIAN WATER LTD,34.15,HQ Energy,Legionella Testing,28-Sep-21,2122/07,LGE,N,
10043371,NORTHUMBRIAN WATER LTD,34.15,Lavenham TIC,Legionella Testing,28-Sep-21,2122/07,LGE,N,
10043371,NORTHUMBRIAN WATER LTD,202.31,Public Conveniences,Legionella Testing,28-Sep-21,2122/07,LGE,N,
10043371,NORTHUMBRIAN WATER LTD,28.9,Responsive maintenance,Legionella Testing,28-Sep-21,2122/07,LGE,N,
10043371,NORTHUMBRIAN WATER LTD,266.38,Sheltered Accommodation,Legionella Testing,28-Sep-21,2122/07,LGE,N,
10043371,NORTHUMBRIAN WATER LTD,91.95,Temporary Accommodation,Legionella Testing,28-Sep-21,2122/07,LGE,N,
10043371,NORTHUMBRIAN WATER LTD,28.9,Wenham Depot,Legionella Testing,28-Sep-21,2122/07,LGE,Y,50%
10042674,STORETEC SERVICES LTD,"1,039.43",ICT,"Equipment, Tools & Materials",31-Aug-21,2122/07,SME,Y,50%
10043314,STORETEC SERVICES LTD,640,ICT,"Equipment, Tools & Materials",30-Sep-21,2122/07,SME,Y,50%
10043163,AIRMAX REMOTE LTD,441.61,Building Services,Plant & Vehicle - Other costs,30-Sep-21,2122/07,SME,Y,50%
10042805,DOCUSIGN INC,"4,037.91",Business Cont/Emergency Plan,Subscriptions,15-Dec-20,2122/07,SME,Y,50%
10043435,SKYGUARD LTD T/A PEOPLESAFE,990,Health & Safety,"Equipment, Tools & Materials",12-Oct-21,2122/07,SME,Y,50%
10043162,RESIDENTIALLY CHARTERED SURVEYORS,550,"Bantocks Rd, Gt Walding S106",Prof & Consultancy Fees,30-Sep-21,2122/07,SME,N,
10043605,TOP FLOORS (EAST ANGLIA) LTD,"2,049.76",Other Temp Accommodation,"Equipment, Tools & Materials",20-Oct-21,2122/07,SME,N,
10043421,SUDBURYS,440,Guaranteed Rent Scheme,Rent Payable,18-Oct-21,2122/07,SME,N,
10042711,ICENI,"4,288.15",Waldingfield Rd S106 Andersons,Prof & Consultancy Fees,13-Sep-21,2122/07,SME,N,
10043487,ICENI,"1,097.53","11-12 Ipswich, Brantham",Prof & Consultancy Fees,20-Oct-21,2122/07,SME,N,
10043488,ICENI,"4,389.35","Bantocks Rd, Gt Walding S106",Prof & Consultancy Fees,20-Oct-21,2122/07,SME,N,
10043489,ICENI,"4,375.39",Bourne Hill Wherstead S106 acq,Prof & Consultancy Fees,20-Oct-21,2122/07,SME,N,
10043490,ICENI,"5,305.71","Raydon Way, Gt Cornard",Prof & Consultancy Fees,20-Oct-21,2122/07,SME,N,
10043153,WILD FRONTIER ECOLOGY LTD,875,"Raydon Way, Gt Cornard",Prof & Consultancy Fees,04-Oct-21,2122/07,SME,N,
10043222,WILLIAM H BROWN ESTATE AGENTS - SUDBURY,725,Guaranteed Rent Scheme,Rent Payable,06-Oct-21,2122/07,SME,N,
10043082,ESSEX & SUFFOLK PEST SOLUTIONS,450,Tenancy Services,Contracted Services,14-Sep-21,2122/07,SME,N,
10043174,PORTAL PLAN QUEST LTD,462,Devt Management -Applications,Planning Fees,01-Oct-21,2122/07,SME,N,
10043108,ABBEYCROFT LEISURE,"17,778.94",Hadleigh Pool,Major Contracts,01-Oct-21,2122/07,LGE,N,
10043108,ABBEYCROFT LEISURE,"8,033.97",New Hadl Pl & Leisure Centre,Major Contracts,01-Oct-21,2122/07,LGE,N,
10043108,ABBEYCROFT LEISURE,"34,924.09",Kingfisher Leisure Centre,Major Contracts,01-Oct-21,2122/07,LGE,N,
10043499,CALL POINT FIRE LTD,"6,616.18",Sheltered Accommodation,Fire Prevention,20-Oct-21,2122/07,SME,N,
10043258,HAMSON BARRON SMITH LTD,"1,250.00",New Bld/acquisition,Prof & Consultancy Fees,30-Sep-21,2122/07,LGE,N,
10043510,A C LEIGH (NORWICH) LTD,338,Building Services,"Equipment, Tools & Materials",19-Oct-21,2122/07,SME,N,
10042794,DAVID STAGG & ASSOCIATES LTD T/A DSA ELE,"4,198.86",Rewiring,Improvements,27-Aug-21,2122/07,SME,N,
10043232,3 POINT PROPERTY MANAGEMENT LTD,550,Guaranteed Rent Scheme,Rent Payable,06-Oct-21,2122/07,SME,N,
10043637,3 POINT PROPERTY MANAGEMENT LTD,558.97,Guaranteed Rent Scheme,Rent Payable,27-Oct-21,2122/07,SME,N,
10042728,WEST SUFFOLK COUNCIL,380,CCTV Cameras,"Equipment, Tools & Materials",10-Sep-21,2122/07,LGE,N,
10043621,WEST SUFFOLK COUNCIL,"124,053.89",Legal,Contributions to other Bodies,21-Oct-21,2122/07,LGE,Y,50%
10043121,EAST SUFFOLK COUNCIL,"75,289.50",COVID Housing Fund,Misc Supplies & Services Costs,22-Sep-21,2122/07,LGE,N,
10043257,MIKTEK LTD,360,Building Services,Repairs,07-Oct-21,2122/07,SME,N,
10043360,IJW PLUMBING,"3,900.00",Renovation/Home Repair Grants,Grants,14-Oct-21,2122/07,ST,N,
10043080,APTL ENTERPRISES LTD,"4,648.00",PV Panels,Contracted Services,30-Sep-21,2122/07,SME,Y,44%
10043081,APTL ENTERPRISES LTD,"3,652.00",PV Panels,Contracted Services,30-Sep-21,2122/07,SME,Y,44%
10043146,APTL ENTERPRISES LTD,"9,230.00",PV Panels,Repairs,30-Sep-21,2122/07,SME,N,
10043351,WASHCO LTD,288.7,Sheltered Accommodation,Repairs,13-Oct-21,2122/07,SME,N,
10042914,ANGLIA COMMERCIAL FLOORING LTD,430.32,Building Services,Repairs,22-Sep-21,2122/07,SME,N,
10042920,ANGLIA COMMERCIAL FLOORING LTD,737.91,Building Services,Repairs,22-Sep-21,2122/07,SME,N,
10043055,ANGLIA COMMERCIAL FLOORING LTD,457.5,Building Services,Repairs,22-Sep-21,2122/07,SME,N,
10043056,ANGLIA COMMERCIAL FLOORING LTD,275.49,Building Services,Repairs,22-Sep-21,2122/07,SME,N,
10043339,ANGLIA COMMERCIAL FLOORING LTD,708.39,Building Services,Repairs,13-Oct-21,2122/07,SME,N,
10043340,ANGLIA COMMERCIAL FLOORING LTD,"1,216.05",Building Services,Repairs,13-Oct-21,2122/07,SME,N,
10043341,ANGLIA COMMERCIAL FLOORING LTD,344.36,Building Services,Repairs,13-Oct-21,2122/07,SME,N,
10043342,ANGLIA COMMERCIAL FLOORING LTD,265.65,Building Services,Repairs,13-Oct-21,2122/07,SME,N,
10043343,ANGLIA COMMERCIAL FLOORING LTD,"1,452.56",Sheltered Accommodation,Improvements,13-Oct-21,2122/07,SME,N,
10043344,ANGLIA COMMERCIAL FLOORING LTD,467.3,Building Services,Repairs,13-Oct-21,2122/07,SME,N,
10043345,ANGLIA COMMERCIAL FLOORING LTD,"1,353.80",Sheltered Accommodation,Repairs,13-Oct-21,2122/07,SME,N,
10043346,ANGLIA COMMERCIAL FLOORING LTD,379.67,Building Services,Repairs,13-Oct-21,2122/07,SME,N,
10043347,ANGLIA COMMERCIAL FLOORING LTD,304.91,Building Services,Repairs,13-Oct-21,2122/07,SME,N,
10043348,ANGLIA COMMERCIAL FLOORING LTD,483.2,Building Services,Repairs,13-Oct-21,2122/07,SME,N,
10043349,ANGLIA COMMERCIAL FLOORING LTD,288.93,Building Services,Repairs,13-Oct-21,2122/07,SME,N,
10043350,ANGLIA COMMERCIAL FLOORING LTD,590.33,Building Services,Repairs,13-Oct-21,2122/07,SME,N,
10043475,ANGLIA COMMERCIAL FLOORING LTD,685.31,Building Services,Repairs,12-Oct-21,2122/07,SME,N,
10043476,ANGLIA COMMERCIAL FLOORING LTD,365.97,Building Services,Repairs,12-Oct-21,2122/07,SME,N,
10043247,FLOWBIRD SMART CITY UK LIMITED,"1,477.00",Pin Mill C Park,Repairs,05-Oct-21,2122/07,SME,N,
10043529,FLOWBIRD SMART CITY UK LIMITED,"1,845.00",Sudb C Parks,Repairs,20-Oct-21,2122/07,SME,N,
10042684,TAYLOR WIMPEY EAST ANGLIA,"31,971.14",Property Acquisition,Prof & Consultancy Fees,09-Sep-21,2122/07,SME,N,
10042684,TAYLOR WIMPEY EAST ANGLIA,"25,087.68","Wolsey Grange, Sproughton S106",Purchase of Land & Buildings,09-Sep-21,2122/07,SME,N,
10043393,TAYLOR WIMPEY EAST ANGLIA,"27,294.21",Property Acquisition,Prof & Consultancy Fees,14-Oct-21,2122/07,SME,N,
10043393,TAYLOR WIMPEY EAST ANGLIA,"21,417.70","Wolsey Grange, Sproughton S106",Purchase of Land & Buildings,14-Oct-21,2122/07,SME,N,
10043047,WLP PROPERTY RESIDENTIAL MANAGEMENT LTD,525,Guaranteed Rent Scheme,Rent Payable,27-Sep-21,2122/07,SME,N,
10043512,WLP PROPERTY RESIDENTIAL MANAGEMENT LTD,525,Guaranteed Rent Scheme,Rent Payable,21-Oct-21,2122/07,SME,N,
10043233,STUDLEY CAPITAL LIMITED,"2,700.00","BRRP-Hamilton,Boreham&BelleVue",Prof & Consultancy Fees,05-Oct-21,2122/07,ST,N,
10043491,ALPHETON VILLAGE HALL,"1,550.00",Suffolk Community Restart Fund,Grants,20-Oct-21,2122/07,SME,N,
10043131,TIAA LTD,"4,250.00",Internal Audit,Contracted Services,01-Oct-21,2122/07,SME,Y,50%
10043434,REEFER PROPERTIES LTD,695,Guaranteed Rent Scheme,Rent Payable,19-Oct-21,2122/07,SME,N,
10043149,PENTACO CONSTRUCTION LTD,"128,495.50","Angel Court, Hadleigh",Major Contracts,06-Sep-21,2122/07,SME,N,
10043057,WADDINGTON BROWN LTD,"1,047.95",Organisational Devt,Agency Staff,27-Sep-21,2122/07,SME,Y,50%
10043058,WADDINGTON BROWN LTD,"1,055.97",Organisational Devt,Agency Staff,20-Sep-21,2122/07,SME,Y,50%
10043089,WADDINGTON BROWN LTD,"1,055.97",Organisational Devt,Agency Staff,31-Aug-21,2122/07,SME,Y,50%
10043090,WADDINGTON BROWN LTD,997.31,Organisational Devt,Agency Staff,13-Sep-21,2122/07,SME,Y,50%
10043324,WADDINGTON BROWN LTD,"1,308.10",Organisational Devt,Agency Staff,11-Oct-21,2122/07,SME,Y,50%
10043442,WADDINGTON BROWN LTD,"1,075.53",Organisational Devt,Agency Staff,04-Oct-21,2122/07,SME,Y,50%
10043083,WILKS HEAD AND EVE LLP,"4,650.00",Financial Servs,Prof & Consultancy Fees,06-Sep-21,2122/07,SME,N,
10043083,WILKS HEAD AND EVE LLP,"18,350.00",General/Supervision & Mgmt,Prof & Consultancy Fees,06-Sep-21,2122/07,SME,N,
10043514,PRIVATE LANDLORD,490,Guaranteed Rent Scheme,Rent Payable,21-Oct-21,2122/07,SME,N,
10042990,BRANDON WETROOMS,"3,396.00",Mand Disabled Facilities Grant,Grants,27-Sep-21,2122/07,SME,N,
20027622,PRIVATE LANDLORD,448.77,Guaranteed Rent Scheme,Rent Payable,13-Oct-21,2122/07,ST,N,
10043418,PRIVATE LANDLORD,650,Guaranteed Rent Scheme,Rent Payable,18-Oct-21,2122/07,SME,N,
10043419,PRIVATE LANDLORD,"1,198.00",Guaranteed Rent Scheme,Rent Payable,18-Oct-21,2122/07,ST,N,
10043221,JLV PROPERTY LTD,500,Guaranteed Rent Scheme,Rent Payable,06-Oct-21,2122/07,SME,N,
10043170,PLUG-N-GO-LIMITED,175.36,Environmental Protection,Contracted Services,01-Oct-21,2122/07,SME,N,
10043170,PLUG-N-GO-LIMITED,237.11,Climate Change and Sustainabil,Misc Supplies & Services Costs,01-Oct-21,2122/07,SME,N,
10043579,CAPITA BUSINESS SERVICES LTD (PAY360),"3,903.06",Financial Servs,Contracted Services,26-Jul-21,2122/07,LGE,N,
10043579,CAPITA BUSINESS SERVICES LTD (PAY360),"3,863.75",Bank Chgs,Bank Charges,26-Jul-21,2122/07,LGE,Y,
10043580,CAPITA BUSINESS SERVICES LTD (PAY360),"5,116.35",Financial Servs,Contracted Services,18-Aug-21,2122/07,LGE,,
10043580,CAPITA BUSINESS SERVICES LTD (PAY360),"5,064.83",Bank Chgs,Bank Charges,18-Aug-21,2122/07,LGE,Y,
10043581,CAPITA BUSINESS SERVICES LTD (PAY360),"4,329.35",Financial Servs,Contracted Services,15-Sep-21,2122/07,LGE,,
10043581,CAPITA BUSINESS SERVICES LTD (PAY360),"4,285.75",Bank Chgs,Bank Charges,15-Sep-21,2122/07,LGE,Y,
10043582,CAPITA BUSINESS SERVICES LTD (PAY360),"4,092.73",Bank Chgs,Bank Charges,08-Oct-21,2122/07,LGE,,
10043583,CAPITA BUSINESS SERVICES LTD (PAY360),732.53,Bank Chgs,Bank Charges,11-Oct-21,2122/07,LGE,,
10043585,CAPITA BUSINESS SERVICES LTD (PAY360),979.48,Bank Chgs,Bank Charges,09-Jun-21,2122/07,LGE,,
10043586,CAPITA BUSINESS SERVICES LTD (PAY360),"1,302.15",Bank Chgs,Bank Charges,09-Jul-21,2122/07,LGE,,
10043587,CAPITA BUSINESS SERVICES LTD (PAY360),"1,324.10",Bank Chgs,Bank Charges,16-Aug-21,2122/07,LGE,,
10043588,CAPITA BUSINESS SERVICES LTD (PAY360),"1,270.44",Bank Chgs,Bank Charges,09-Sep-21,2122/07,LGE,,
10043589,CAPITA BUSINESS SERVICES LTD (PAY360),534.49,Bank Chgs,Bank Charges,19-Oct-21,2122/07,LGE,,
10043507,SEQUENCE UK LTD (WILLIAM H BROWN),700,Guaranteed Rent Scheme,Rent Payable,21-Oct-21,2122/07,LGE,N,
10043440,PRIVATE LANDLORD,550,Guaranteed Rent Scheme,Contracted Services,19-Oct-21,2122/07,ST,N,
10043501,R GWINNELL & SONS,"1,430.00",General Rechargeable Works,Misc Supplies & Services Costs,05-Oct-21,2122/07,SME,N,
10043048,PRIVATE LANDLORD,700,Rent Deposit Scheme,Misc Premises Costs,29-Sep-21,2122/07,ST,N,
10043632,PRIVATE LANDLORD,700,Guaranteed Rent Scheme,Rent Payable,27-Oct-21,2122/07,ST,N,
10043203,PRIVATE LANDLORD,490,Rent Deposit Scheme,Misc Premises Costs,05-Oct-21,2122/07,SME,N,
10043031,AMPLIS CONSTRUCTION LTD,738.97,Building Services,Repairs,28-Sep-21,2122/07,SME,N,
10043097,AMPLIS CONSTRUCTION LTD,"20,389.72","Fences, Gates and Walls",Major Contracts,29-Sep-21,2122/07,SME,N,
10043202,PRIVATE LANDLORD,786.5,Guaranteed Rent Scheme,Rent Payable,05-Oct-21,2122/07,ST,N,
10043094,DAVID KNIGHTS T/A DAVID BROWN,275,Assets & Development,Prof & Consultancy Fees,28-Sep-21,2122/07,ST,N,
10043316,PRIVATE LANDLORD,650,Guaranteed Rent Scheme,Rent Payable,12-Oct-21,2122/07,ST,N,
10043142,CORENERGY LIMITED,"7,861.20",Public Sector Decarbonisation,Contracted Services,30-Sep-21,2122/07,SME,N,
10043143,CORENERGY LIMITED,"49,511.00",Public Sector Decarbonisation,Contracted Services,30-Sep-21,2122/07,SME,N,
10043129,DGL QUALITY MANAGEMENT LTD,560,"1-3 Queensland, Shotley",Prof & Consultancy Fees,30-Sep-21,2122/07,SME,N,
10043130,DGL QUALITY MANAGEMENT LTD,560,"11-12 Ipswich, Brantham",Prof & Consultancy Fees,30-Oct-21,2122/07,SME,N,
10043201,PRIVATE LANDLORD,650,Guaranteed Rent Scheme,Rent Payable,05-Oct-21,2122/07,ST,N,
10043244,TT MAN WITH A VAN,350,Homeless Prevention Fund,Misc Supplies & Services Costs,07-Oct-21,2122/07,ST,N,
10043220,PRIVATE LANDLORD,800,Guaranteed Rent Scheme,Rent Payable,06-Oct-21,2122/07,SME,N,
10042860,ARAN INSULATION LTD,703,Insulation Imps,Improvements,20-Sep-21,2122/07,SME,N,
10042860,ARAN INSULATION LTD,"5,000.00",Insulation Imps,Improvements,20-Sep-21,2122/07,SME,N,
10042997,ARAN INSULATION LTD,"33,264.75",Insulation Imps,Major Contracts,27-Sep-21,2122/07,SME,N,
10042997,ARAN INSULATION LTD,635,Insulation Imps,Improvements,27-Sep-21,2122/07,SME,N,
10043079,ARAN INSULATION LTD,"1,579.50",Insulation Imps,Improvements,30-Sep-21,2122/07,SME,N,
10043285,ARAN INSULATION LTD,395,Insulation Imps,Improvements,11-Oct-21,2122/07,SME,N,
10043354,ARAN INSULATION LTD,"15,960.00",Insulation Imps,Improvements,14-Oct-21,2122/07,SME,N,
10043517,ARAN INSULATION LTD,"1,980.00",Building Services,Contracted Services,21-Oct-21,2122/07,SME,N,
10043595,ORWELL REMOVALS & STORAGE LTD,"1,370.00",Homelessness Private Sector,Removal Expenses,25-Oct-21,2122/07,SME,N,
10043245,THE SPACEMAN,451.2,Homeless Prevention Fund,Misc Supplies & Services Costs,07-Oct-21,2122/07,ST,N,
10043422,PRIVATE LANDLORD,550,Guaranteed Rent Scheme,Rent Payable,18-Oct-21,2122/07,ST,N,
10043539,RIGHTMOVE MOVE LTD,"1,552.50",HRA Other Capital Receipts,Advertising&mkting (non-staff),30-Jul-21,2122/07,LGE,N,
10043540,RIGHTMOVE MOVE LTD,"1,502.34",HRA Other Capital Receipts,Advertising&mkting (non-staff),30-Jun-21,2122/07,LGE,N,
10043395,NWES PROPERTY SERVICES LTD,620,Major Imps,Rent Payable,01-Oct-21,2122/07,SME,N,
10043276,IHASCO LTD,"2,100.00",Organisational Devt,Training,23-Sep-21,2122/07,SME,Y,50%
10043045,PRIVATE LANDLORD,"1,200.00",Guaranteed Rent Scheme,Rent Payable,29-Sep-21,2122/07,SME,N,
10043046,PRIVATE LANDLORD,550,Guaranteed Rent Scheme,Rent Payable,29-Sep-21,2122/07,ST,N,
10043410,POLYSOLAR LTD,"120,956.78",Public Sector Decarbonisation,Contracted Services,01-Sep-21,2122/07,SME,N,
10043242,IPSERV LTD,442.14,Communications,Commercial Printing,01-Oct-21,2122/07,SME,N,
10043242,IPSERV LTD,560.15,Central Printing,Commercial Printing,01-Oct-21,2122/07,SME,N,
20027621,IPSERV LTD,675.32,Central Printing,Commercial Printing,01-Sep-21,2122/07,SME,N,
20027621,IPSERV LTD,271.94,Communications,Commercial Printing,01-Sep-21,2122/07,SME,N,
10042923,RSM RISK ASSURANCE SERVICES LLP,"2,500.00","11-12 Ipswich, Brantham",Prof & Consultancy Fees,21-Sep-21,2122/07,LGE,N,
10043332,DAVID BURR LETTINGS,700,Guaranteed Rent Scheme,Rent Payable,13-Oct-21,2122/07,SME,N,
10043250,HENLEY BUSINESS SCHOOL LTD,"1,390.00",Organisational Devt,Training,23-Aug-21,2122/07,LGE,Y,50%
10043251,HENLEY BUSINESS SCHOOL LTD,"1,390.00",Organisational Devt,Training,06-Sep-21,2122/07,LGE,Y,50%
10043141,TFH GAZEBOS,640,BRRP - Successful & Skilled,Prof & Consultancy Fees,24-Sep-21,2122/07,SME,N,
10043443,FOURWAYS VEHICLE SOLUTIONS LTD,574.1,Building Services,Lease Cars - Payment,21-Apr-21,2122/07,SME,Y,50%
10043444,FOURWAYS VEHICLE SOLUTIONS LTD,511,Building Services,Lease Cars - Payment,19-May-21,2122/07,SME,Y,50%
10043445,FOURWAYS VEHICLE SOLUTIONS LTD,511,Building Services,Lease Cars - Payment,14-Jun-21,2122/07,SME,Y,50%
10043448,FOURWAYS VEHICLE SOLUTIONS LTD,511,Building Services,Lease Cars - Payment,19-Jul-21,2122/07,SME,Y,50%
10043449,FOURWAYS VEHICLE SOLUTIONS LTD,511,Building Services,Lease Cars - Payment,09-Aug-21,2122/07,SME,Y,50%
10043450,FOURWAYS VEHICLE SOLUTIONS LTD,511,Building Services,Lease Cars - Payment,07-Sep-21,2122/07,SME,Y,50%
10043451,FOURWAYS VEHICLE SOLUTIONS LTD,579.9,Building Services,Lease Cars - Payment,10-May-21,2122/07,SME,Y,50%
10043452,FOURWAYS VEHICLE SOLUTIONS LTD,511,Building Services,Lease Cars - Payment,28-Jun-21,2122/07,SME,Y,50%
10043453,FOURWAYS VEHICLE SOLUTIONS LTD,511,Building Services,Lease Cars - Payment,08-Jul-21,2122/07,SME,Y,50%
10043454,FOURWAYS VEHICLE SOLUTIONS LTD,511,Building Services,Lease Cars - Payment,04-Aug-21,2122/07,SME,Y,50%
10043455,FOURWAYS VEHICLE SOLUTIONS LTD,511,Building Services,Lease Cars - Payment,31-Aug-21,2122/07,SME,Y,50%
10043456,FOURWAYS VEHICLE SOLUTIONS LTD,511,Building Services,Lease Cars - Payment,28-Sep-21,2122/07,SME,Y,50%
10043459,FOURWAYS VEHICLE SOLUTIONS LTD,511,Building Services,Lease Cars - Payment,04-Oct-21,2122/07,SME,Y,50%
10043402,HIGGINS REMOVALS,500,Homelessness Private Sector,Removal Expenses,15-Oct-21,2122/07,ST,N,
10043474,ALTON FIVE STAR LTD,"7,864.00",Renovation/Home Repair Grants,Grants,19-Oct-21,2122/07,SME,N,
10043526,TRI SUDBURY,"1,330.00",Suffolk Community Restart Fund,Grants,21-Oct-21,2122/07,,N,
10043527,LAVENHAM YOUTH FC,"1,150.00",Suffolk Community Restart Fund,Grants,21-Oct-21,2122/07,SME,N,
20027636,PRIVATE LANDLORD,715,Guaranteed Rent Scheme,Rent Payable,22-Oct-21,2122/07,SME,N,
20027636,PRIVATE LANDLORD,750,Guaranteed Rent Scheme,Misc Supplies & Services Costs,22-Oct-21,2122/07,SME,N,
219,SUFFOLK TREE SERVICES LTD,"-2,300.00",Amenity Areas,Tree felling/maintenance,28-Oct-21,2122/07,SME,N,
220,SUFFOLK TREE SERVICES LTD,"-1,950.00",Amenity Areas,Tree felling/maintenance,28-Oct-21,2122/07,SME,N,
983,IPSWICH BOROUGH COUNCIL,-675.32,Central Printing,Commercial Printing,21-Oct-21,2122/07,LGE,N,
983,IPSWICH BOROUGH COUNCIL,-271.94,Communications,Commercial Printing,21-Oct-21,2122/07,LGE,N,
983,IPSWICH BOROUGH COUNCIL,"-17,186.00",COVID Housing Fund,Misc Supplies & Services Costs,21-Oct-21,2122/07,LGE,N,
10043546,KNOWLES ASSOCIATES TFM LTD,-95,Building Services,Lease Cars - Payment,19-Oct-21,2122/07,SME,Y,50%
981,THE SPACEMAN,-451.2,Homeless Prevention Fund,Misc Supplies & Services Costs,18-Oct-21,2122/07,ST,N,
10043961,AE WHITE SURFACING,"1,278.00",Assets & Development,Repairs,10-Nov-21,2122/08,SME,N,
10044070,AE WHITE SURFACING,"2,604.00",Insurance Claims,Misc Premises Costs,16-Nov-21,2122/08,SME,N,
10044071,AE WHITE SURFACING,"1,632.00",Hadl C Parks,Repairs,16-Nov-21,2122/08,SME,N,
10043769,ALPHETON GARAGE LTD,500,Taxi & Private Hire Licensing,Contracted Services,03-Nov-21,2122/08,SME,N,
10043515,ANGLIAN WATER,"1,159.20",Water Sampling,Sampling & Analysis,20-Oct-21,2122/08,LGE,N,
10044257,ANGLIAN WATER,"1,224.08",Water Sampling,Sampling & Analysis,25-Nov-21,2122/08,LGE,N,
10044240,BINDER LTD,119.76,Sewage Treatment Works,Contracted Services,17-Nov-21,2122/08,SME,N,
10044240,BINDER LTD,180,Sewage Treatment Works,Contracted Services,17-Nov-21,2122/08,SME,N,
10043754,BLUE FLAME (COLCHESTER) LTD,"14,522.48",Planned Maint - Heating,Property Servicing,28-Oct-21,2122/08,SME,N,
10044049,BLUE FLAME (COLCHESTER) LTD,133.24,Building Services,Repairs,09-Sep-21,2122/08,SME,N,
10044049,BLUE FLAME (COLCHESTER) LTD,"1,756.74",Central Heating,Improvements,09-Sep-21,2122/08,SME,N,
10044049,BLUE FLAME (COLCHESTER) LTD,"2,376.36",Planned Maint - Heating,Property Servicing,09-Sep-21,2122/08,SME,N,
10044049,BLUE FLAME (COLCHESTER) LTD,"1,371.25",PV Panels,Contracted Services,09-Sep-21,2122/08,SME,N,
10044049,BLUE FLAME (COLCHESTER) LTD,422.95,Rewiring,Improvements,09-Sep-21,2122/08,SME,N,
10044049,BLUE FLAME (COLCHESTER) LTD,18.36,Smoke Alarms (Bbgh Standard),Improvements,09-Sep-21,2122/08,SME,N,
10044169,BLUE FLAME (COLCHESTER) LTD,"2,175.00",Hadleigh TDP,Operating Lease Payments,02-Oct-20,2122/08,SME,Y,50%
20027658,BLUE FLAME (COLCHESTER) LTD,"12,823.01",Current Liabilities,Cert IBS Creditors Holding ac,03-Nov-21,2122/08,SME,N,
20027662,BLUE FLAME (COLCHESTER) LTD,"28,222.25",Current Liabilities,Cert IBS Creditors Holding ac,10-Nov-21,2122/08,SME,N,
20027669,BLUE FLAME (COLCHESTER) LTD,"22,520.25",Current Liabilities,Cert IBS Creditors Holding ac,17-Nov-21,2122/08,SME,N,
20027674,BLUE FLAME (COLCHESTER) LTD,"26,844.60",Current Liabilities,Cert IBS Creditors Holding ac,24-Nov-21,2122/08,SME,N,
10043758,BOTTOMLINE TECHNOLOGIES,667.8,ICT,Software Licnse (Line of Bus) ,31-Oct-21,2122/08,LGE,Y,50%
10043135,BOWER FULLER,"4,866.25",CCTV Cameras,"Equipment, Tools & Materials",24-Sep-21,2122/08,SME,N,
10043922,BOWER FULLER,"1,130.12",Tenancy Services,Fire Prevention,29-Oct-21,2122/08,SME,N,
10043923,BOWER FULLER,"1,130.12",Tenancy Services,Fire Prevention,29-Oct-21,2122/08,SME,N,
10043924,BOWER FULLER,"1,130.12",Tenancy Services,Fire Prevention,29-Oct-21,2122/08,SME,N,
10043925,BOWER FULLER,"1,130.12",Tenancy Services,Fire Prevention,29-Oct-21,2122/08,SME,N,
10043926,BOWER FULLER,798.23,Tenancy Services,Fire Prevention,29-Oct-21,2122/08,SME,N,
10043927,BOWER FULLER,600.82,Sheltered Accommodation,Fire Prevention,29-Oct-21,2122/08,SME,N,
10043928,BOWER FULLER,600.82,Tenancy Services,Fire Prevention,29-Oct-21,2122/08,SME,N,
10043929,BOWER FULLER,600.82,Tenancy Services,Fire Prevention,29-Oct-21,2122/08,SME,N,
10043932,BOWER FULLER,715.2,Asbestos,BMBS Repairs Work,29-Oct-21,2122/08,SME,N,
10043935,BOWER FULLER,446.34,Temporary Accommodation,Repairs,29-Oct-21,2122/08,SME,N,
10043881,AQUASAMPLERS,896,Water Sampling,Sampling & Analysis,31-Oct-21,2122/08,SME,N,
10043915,CHIPSIDE LTD,264.42,Sudb C Parks,Contracted Services,31-Oct-21,2122/08,SME,N,
10043594,D W ADAMS LTD,"11,925.26",Council House Adaptions,Improvements,25-Oct-21,2122/08,SME,N,
10043597,D W ADAMS LTD,284.63,Council House Adaptions,Improvements,25-Oct-21,2122/08,SME,N,
10043603,D W ADAMS LTD,542,Building Services,Repairs,25-Oct-21,2122/08,SME,N,
10043895,D W ADAMS LTD,"3,197.00",Conversions & Adaptations,Improvements,09-Nov-21,2122/08,SME,N,
10044031,D W ADAMS LTD,"7,477.00",Council House Adaptions,Improvements,15-Nov-21,2122/08,SME,N,
10043815,DOLPHIN STAIRLIFTS (EAST ANGLIA) LTD,"1,741.00",Mand Disabled Facilities Grant,Grants,04-Nov-21,2122/08,SME,N,
10044093,CIVICA ELECTION SERVICES,"1,896.37",Electoral Registration,Commercial Printing,16-Sep-21,2122/08,LGE,Y,50%
10044094,CIVICA ELECTION SERVICES,"13,273.47",Electoral Registration,Commercial Printing,16-Sep-21,2122/08,LGE,Y,50%
10043673,ENER-G SWITCH2 LTD,259.1,Building Services,Repairs,29-Oct-21,2122/08,SME,N,
10043651,ENGLISH SECURITY,133.9,Building Services,Fire Prevention,25-Oct-21,2122/08,SME,N,
10043651,ENGLISH SECURITY,638.6,Chilton Depot,Fire Prevention,25-Oct-21,2122/08,SME,Y,50%
10043651,ENGLISH SECURITY,561.36,Headquarters General,Fire Prevention,25-Oct-21,2122/08,SME,N,
10043651,ENGLISH SECURITY,"2,772.35",Sheltered Accommodation,Fire Prevention,25-Oct-21,2122/08,SME,N,
10043651,ENGLISH SECURITY,"1,060.80",Temporary Accommodation,Fire Prevention,25-Oct-21,2122/08,SME,N,
10043651,ENGLISH SECURITY,"7,191.05",Tenancy Services,Fire Prevention,25-Oct-21,2122/08,SME,N,
10043651,ENGLISH SECURITY,267.8,Wenham Depot,Fire Prevention,25-Oct-21,2122/08,SME,Y,50%
10043738,ENGLISH SECURITY,"5,943.75",Sheltered Accommodation,Improvements,30-Sep-21,2122/08,SME,N,
10043615,ENVIROVENT LTD,460,Building Services,Repairs,22-Oct-21,2122/08,SME,N,
10043747,ENVIROVENT LTD,889.1,Building Services,Repairs,29-Oct-21,2122/08,SME,N,
10043748,ENVIROVENT LTD,460,Building Services,Repairs,29-Oct-21,2122/08,SME,N,
10043842,ENVIROVENT LTD,668.16,Dampness & Condensation,Repairs,03-Nov-21,2122/08,SME,N,
10044103,ENVIROVENT LTD,709,Building Services,Repairs,15-Nov-21,2122/08,SME,N,
10044104,ENVIROVENT LTD,460,Building Services,Repairs,22-Nov-21,2122/08,SME,N,
10043604,FELLBRIDGE BUILDING SERVICES,476.4,Building Services,Repairs,25-Oct-21,2122/08,SME,N,
10043701,FELLBRIDGE BUILDING SERVICES,"6,181.71",Major Imps,Improvements,28-Oct-21,2122/08,SME,N,
10043824,FELLBRIDGE BUILDING SERVICES,"9,893.21",Building Services,Repairs,04-Nov-21,2122/08,SME,N,
10043882,FELLBRIDGE BUILDING SERVICES,"1,489.44",Building Services,Repairs,08-Nov-21,2122/08,SME,N,
10043883,FELLBRIDGE BUILDING SERVICES,613.28,Building Services,Repairs,08-Nov-21,2122/08,SME,N,
10043884,FELLBRIDGE BUILDING SERVICES,"1,867.34",Building Services,Repairs,08-Nov-21,2122/08,SME,N,
10043084,FORE-MOST GARAGE DOORS LTD,"3,037.32",Building Services,Repairs,30-Sep-21,2122/08,SME,N,
10043735,GB ADAPTIONS LTD,"7,496.00",Mand Disabled Facilities Grant,Grants,02-Nov-21,2122/08,SME,N,
10043743,GB ADAPTIONS LTD,"2,348.00",Mand Disabled Facilities Grant,Grants,02-Nov-21,2122/08,SME,N,
10044163,GB ADAPTIONS LTD,"4,672.00",Mand Disabled Facilities Grant,Grants,23-Nov-21,2122/08,SME,N,
10044029,G4S CASH SOLUTIONS LTD,537.6,Financial Servs,Contracted Services,31-Oct-21,2122/08,LGE,N,
10043472,GHB ROOFING,915,Building Services,Repairs,08-Mar-21,2122/08,SME,N,
10043745,HAYES DIGGINS BUILDERS,"4,443.00",Building Services,BMBS Repairs Work,01-Nov-21,2122/08,SME,N,
10044065,HAYES DIGGINS BUILDERS,280,Hadleigh Pool,Repairs,23-Aug-21,2122/08,SME,N,
10043654,HQN LTD,350,Building Services,Training,06-Sep-21,2122/08,SME,Y,50%
10043971,HQN LTD,350,Capita System Support,Training,08-Nov-21,2122/08,SME,Y,50%
10044237,JMP SERVICES LTD,780,Open Spaces,Contracted Services,25-Nov-21,2122/08,SME,N,
10043502,KEN GRIME & SON LTD,966.69,Building Services,Repairs,20-Oct-21,2122/08,SME,N,
10044043,KEN GRIME & SON LTD,929.06,Building Services,Repairs,15-Nov-21,2122/08,SME,N,
10043657,KENDA-CLEAN,14,Chilton Depot,Window Cleaning,25-Oct-21,2122/08,SME,Y,50%
10043657,KENDA-CLEAN,954,Sheltered Accommodation,Window Cleaning,25-Oct-21,2122/08,SME,N,
10043657,KENDA-CLEAN,93,Temporary Accommodation,Window Cleaning,25-Oct-21,2122/08,SME,N,
10043657,KENDA-CLEAN,431,Tenancy Services,Window Cleaning,25-Oct-21,2122/08,SME,N,
10043755,MALJON TIMBER PRESERVATION LTD,477,Dampness & Condensation,Repairs,02-Nov-21,2122/08,SME,N,
10043756,MALJON TIMBER PRESERVATION LTD,561,Dampness & Condensation,Repairs,02-Nov-21,2122/08,SME,N,
10043757,MALJON TIMBER PRESERVATION LTD,434,Dampness & Condensation,Repairs,02-Nov-21,2122/08,SME,N,
10043708,MATERIAL CHANGE COMPOSTING LTD,"1,808.54",Open Spaces,Waste Disposal,31-Oct-21,2122/08,LGE,N,
10043663,MB TREES (EAST ANGLIA) LTD,"1,650.00",Tenancy Services,Tree felling/maintenance,28-Oct-21,2122/08,SME,N,
10044235,MB TREES (EAST ANGLIA) LTD,"3,940.00",Tenancy Services,Tree felling/maintenance,25-Nov-21,2122/08,SME,N,
10043951,MERCURY BUILDING SERVICES LTD,968,Hadleigh Pool,Repairs,10-Nov-21,2122/08,SME,N,
10044085,MERCURY BUILDING SERVICES LTD,587,Public Sector Decarbonisation,Repairs,29-Sep-21,2122/08,SME,N,
10044036,MONTHIND CLEAN LTD,624.43,Jnt Waste Contract,General Cleaning,16-Nov-21,2122/08,LGE,Y,50%
10043576,ORWELL HOUSING ASSOCIATION LTD,545.52,Sheltered Accommodation,Contracted Services,30-Sep-21,2122/08,LGE,N,
10043577,ORWELL HOUSING ASSOCIATION LTD,293.58,Tenancy Services,Stationery,30-Jul-21,2122/08,LGE,N,
10044213,ORWELL HOUSING ASSOCIATION LTD,545.52,Sheltered Accommodation,Contracted Services,17-Nov-21,2122/08,LGE,N,
10043570,PITMAN BROTHERS (DECORATORS) LTD,"2,400.00",Building Services,Repairs,22-Oct-21,2122/08,SME,N,
10043773,PITMAN BROTHERS (DECORATORS) LTD,"1,800.00",Building Services,Repairs,03-Nov-21,2122/08,SME,N,
10043283,PRO-FLAT SPECIALIST SERVICES LTD,"8,273.00",Roofing,Improvements,08-Oct-21,2122/08,SME,N,
10043720,PRO-FLAT SPECIALIST SERVICES LTD,"8,273.00",Roofing,Improvements,29-Oct-21,2122/08,SME,N,
10043887,PRO-FLAT SPECIALIST SERVICES LTD,"1,285.00",Building Services,Repairs,08-Nov-21,2122/08,SME,N,
10043936,PRO-FLAT SPECIALIST SERVICES LTD,620.5,Major Imps,Improvements,10-Nov-21,2122/08,SME,N,
10043936,PRO-FLAT SPECIALIST SERVICES LTD,620.5,Major Imps,Improvements,10-Nov-21,2122/08,SME,N,
10043953,PRO-FLAT SPECIALIST SERVICES LTD,"3,124.00",Roofing,Repairs,10-Nov-21,2122/08,SME,N,
10043993,PRO-FLAT SPECIALIST SERVICES LTD,"4,521.00",Roofing,Improvements,11-Nov-21,2122/08,SME,N,
10043631,REID PLUMBING & HEATING CONTRACTORS LTD,"4,643.71",Central Heating,Major Contracts,27-Oct-21,2122/08,SME,N,
10043694,REID PLUMBING & HEATING CONTRACTORS LTD,"18,623.51",Central Heating,Major Contracts,30-Oct-21,2122/08,SME,N,
10043763,REID PLUMBING & HEATING CONTRACTORS LTD,"9,855.53",Central Heating,Major Contracts,03-Nov-21,2122/08,SME,N,
10043913,REID PLUMBING & HEATING CONTRACTORS LTD,"20,765.81",Central Heating,Major Contracts,10-Nov-21,2122/08,SME,N,
10043853,RICOH UK LTD,"1,042.90",ICT,Photocopying,05-Nov-21,2122/08,LGE,Y,48%
10044178,ROYAL INSTITUTION OF CHARTERED SURVEYORS,"2,000.00",Building Services,Subscriptions,22-Nov-21,2122/08,LGE,Y,50%
10044066,SEAGER HOME SOLUTIONS,"3,874.00",Building Services,Repairs,16-Nov-21,2122/08,SME,N,
10044116,SEAGER HOME SOLUTIONS,"7,287.60",Renovation/Home Repair Grants,Grants,18-Nov-21,2122/08,SME,N,
10043364,SOLACE GROUP LTD,"1,437.50",Management Team,Training,30-Sep-21,2122/08,SME,Y,50%
10043839,SOLUTIONS ON SECURITY SERVICES,"1,085.20",Sheltered Accommodation,Repairs,05-Nov-21,2122/08,SME,N,
10043852,SPALDINGS LTD,780.9,Open Spaces,"Equipment, Tools & Materials",05-Nov-21,2122/08,SME,N,
10042000,SUFFOLK LIBRARIES IPS LTD HADLEIGH,564.95,Customer Servs,"Equipment, Tools & Materials",20-Jul-21,2122/08,SME,N,
10044033,SUFFOLK TREE SERVICES LTD,300,Public Tree Programme,Tree felling/maintenance,15-Nov-21,2122/08,SME,N,
10044034,SUFFOLK TREE SERVICES LTD,"1,700.00",Public Tree Programme,Tree felling/maintenance,15-Nov-21,2122/08,SME,N,
10044056,SUFFOLK TREE SERVICES LTD,350,Sheltered Accommodation,Tree felling/maintenance,16-Nov-21,2122/08,SME,N,
10044249,SUFFOLK TREE SERVICES LTD,"1,100.00",Public Tree Programme,Tree felling/maintenance,24-Nov-21,2122/08,SME,N,
10043403,SUREFIX,"5,500.00",Building Services,Repairs,15-Oct-21,2122/08,SME,N,
10043407,SUREFIX,420,Building Services,Repairs,14-Oct-21,2122/08,SME,N,
10043554,SUREFIX,542.74,Building Services,Repairs,18-Oct-21,2122/08,SME,N,
10043555,SUREFIX,669.14,Building Services,Repairs,19-Oct-21,2122/08,SME,N,
10043680,SUREFIX,"1,140.08",Building Services,Repairs,25-Oct-21,2122/08,SME,N,
10043682,SUREFIX,"1,345.80",Building Services,Repairs,29-Oct-21,2122/08,SME,N,
10043683,SUREFIX,580.14,Building Services,Repairs,29-Oct-21,2122/08,SME,N,
10043684,SUREFIX,425,Building Services,Repairs,29-Oct-21,2122/08,SME,N,
10043982,SUREFIX,850,Building Services,Repairs,02-Nov-21,2122/08,SME,N,
10043985,SUREFIX,"2,150.00",Building Services,Repairs,27-Oct-21,2122/08,SME,N,
10043988,SUREFIX,569.48,Building Services,Repairs,10-Nov-21,2122/08,SME,N,
10043989,SUREFIX,527.4,Building Services,Repairs,09-Nov-21,2122/08,SME,N,
10043990,SUREFIX,949.32,Building Services,Repairs,11-Nov-21,2122/08,SME,N,
10044040,SUREFIX,255,Building Services,Repairs,01-Nov-21,2122/08,SME,N,
10044009,TANKCHANGE LTD,"2,295.00",Central Heating,Improvements,10-Nov-21,2122/08,SME,N,
10044026,TANKCHANGE LTD,"2,095.00",Central Heating,Improvements,13-Nov-21,2122/08,SME,N,
10043634,TDT ENTERPRISES LTD,356,Sheltered Accommodation,"Equipment, Tools & Materials",26-Oct-21,2122/08,SME,N,
10043634,TDT ENTERPRISES LTD,89,Temporary Accommodation,"Equipment, Tools & Materials",26-Oct-21,2122/08,SME,N,
10043634,TDT ENTERPRISES LTD,95,Wenham Depot,"Equipment, Tools & Materials",26-Oct-21,2122/08,SME,Y,50%
10043563,THERMATECH,475,Chilton Depot,Fire Prevention,22-Oct-21,2122/08,SME,Y,50%
10043563,THERMATECH,950,Temporary Accommodation,Fire Prevention,22-Oct-21,2122/08,SME,N,
10043563,THERMATECH,"1,050.00",Tenancy Services,Fire Prevention,22-Oct-21,2122/08,SME,N,
10043563,THERMATECH,475,Wenham Depot,Fire Prevention,22-Oct-21,2122/08,SME,Y,50%
10043687,TREADFIRST TYRE & EXHAUST LIMITED,350,Taxi & Private Hire Licensing,Contracted Services,29-Oct-21,2122/08,SME,N,
10043759,VODAFONE CORPORATE LTD,465,ICT,Telephone Costs,24-Oct-21,2122/08,LGE,N,
10043656,WEST END REHOMING,"11,000.00",Dog Control,Kennels Retainer,01-Oct-21,2122/08,SME,N,
10043825,WINDIMAN LTD,284.85,Building Services,Repairs,04-Nov-21,2122/08,SME,N,
10043937,WINDIMAN LTD,735,Building Services,Repairs,10-Nov-21,2122/08,SME,N,
10043938,WINDIMAN LTD,558.83,Building Services,Repairs,10-Nov-21,2122/08,SME,N,
10044099,WORKWEAR (EAST ANGLIA) LTD,276,Street & Major Road Cleansing,Protective clothing,25-Oct-21,2122/08,SME,N,
10042192,ARCHANT COMMUNITY MEDIA LTD,348.04,Devt Policy & Local Plans,Advertising&mkting (non-staff),14-Aug-21,2122/08,LGE,Y,50%
10043653,ARCHANT COMMUNITY MEDIA LTD,410.97,Devt Management -Applications,Advertising&mkting (non-staff),18-Oct-21,2122/08,LGE,N,
10043752,ARCHANT COMMUNITY MEDIA LTD,273.46,GF - Misc Capital Receipts,Advertising&mkting (non-staff),31-Oct-21,2122/08,LGE,N,
10043753,ARCHANT COMMUNITY MEDIA LTD,525.3,Devt Management -Applications,Advertising&mkting (non-staff),31-Oct-21,2122/08,LGE,N,
10043893,ARCHANT COMMUNITY MEDIA LTD,273.46,GF - Misc Capital Receipts,Advertising&mkting (non-staff),06-Nov-21,2122/08,LGE,N,
10043894,ARCHANT COMMUNITY MEDIA LTD,735.42,Devt Management -Applications,Advertising&mkting (non-staff),06-Nov-21,2122/08,LGE,N,
10044014,ARCHANT COMMUNITY MEDIA LTD,648.9,Devt Management -Applications,Advertising&mkting (non-staff),13-Nov-21,2122/08,LGE,N,
10044188,ARCHANT COMMUNITY MEDIA LTD,273.46,GF - Misc Capital Receipts,Advertising&mkting (non-staff),20-Nov-21,2122/08,LGE,N,
10043891,ID MANAGEMENT SYSTEMS,273.83,"Alc,Ents&Late Night Refreshmt","Equipment, Tools & Materials",04-Nov-21,2122/08,SME,Y,50%
10044000,IPSWICH BOROUGH COUNCIL,"258,350.75",Shared Revenues Partnership,Major Contracts,10-Nov-21,2122/08,LGE,N,
10044023,IPSWICH BOROUGH COUNCIL,825.01,Shared Revenues Partnership,Contributions to other Bodies,10-Nov-21,2122/08,LGE,N,
20027671,EDF ENERGY,66.39,Belle Vue House,Electricity,19-Nov-21,2122/08,LGE,N,
20027671,EDF ENERGY,891.61,C Parks General,Electricity,19-Nov-21,2122/08,LGE,N,
20027671,EDF ENERGY,13.6,Calais St Depot,Electricity,19-Nov-21,2122/08,LGE,N,
20027671,EDF ENERGY,921.28,Chilton Depot,Electricity,19-Nov-21,2122/08,LGE,Y,50%
20027671,EDF ENERGY,358,Climate Change and Sustainabil,Electricity,19-Nov-21,2122/08,LGE,N,
20027671,EDF ENERGY,87.37,Community Safety-CCTV,Electricity,19-Nov-21,2122/08,LGE,N,
20027671,EDF ENERGY,13.23,Hadl Market,Electricity,19-Nov-21,2122/08,LGE,N,
20027671,EDF ENERGY,"3,794.21",Hadleigh Pool,Electricity,19-Nov-21,2122/08,LGE,N,
20027671,EDF ENERGY,11.83,Headquarters General,Electricity,19-Nov-21,2122/08,LGE,N,
20027671,EDF ENERGY,"1,012.90",HQ Energy,Electricity,19-Nov-21,2122/08,LGE,N,
20027671,EDF ENERGY,277.39,Public Conveniences,Electricity,19-Nov-21,2122/08,LGE,N,
20027671,EDF ENERGY,108.11,Sewage Treatment Works,Electricity,19-Nov-21,2122/08,LGE,N,
20027671,EDF ENERGY,"9,602.17",Sheltered Accommodation,Electricity,19-Nov-21,2122/08,LGE,N,
20027671,EDF ENERGY,164.36,SP Comm Alarms (Non-SH),Electricity,19-Nov-21,2122/08,LGE,N,
20027671,EDF ENERGY,595.82,Temporary Accommodation,Electricity,19-Nov-21,2122/08,LGE,N,
20027671,EDF ENERGY,"5,089.92",Tenancy Services,Electricity,19-Nov-21,2122/08,LGE,N,
20027671,EDF ENERGY,6.01,Wenham Depot,Electricity,19-Nov-21,2122/08,LGE,N,
20027668,GPC BARCLAYS,"6,098.29",Current Assets,Barclaycard Control,16-Nov-21,2122/08,LGE,Y,18.50%
10043764,STANNAH STAIRLIFTS LTD,"4,981.00",Mand Disabled Facilities Grant,Grants,03-Nov-21,2122/08,LGE,N,
20027675,COMPUTERSHARE ,636,Current Assets,ChildCare Vouchers-Control,25-Nov-21,2122/08,LGE,N,
20027649,BURES ST MARY PARISH COUNCIL,347.49,Street & Major Road Cleansing,Contributions & Donations,02-Nov-21,2122/08,SME,N,
20027651,EAST BERGHOLT PARISH COUNCIL,"1,158.30",Street & Major Road Cleansing,Contributions & Donations,02-Nov-21,2122/08,SME,N,
20027652,HOLBROOK PARISH COUNCIL,752.9,Street & Major Road Cleansing,Contributions & Donations,02-Nov-21,2122/08,SME,N,
20027654,LAVENHAM PARISH COUNCIL,"2,432.43",Street & Major Road Cleansing,Contributions & Donations,02-Nov-21,2122/08,SME,N,
20027655,LONG MELFORD PARISH COUNCIL,"1,042.47",Street & Major Road Cleansing,Contributions & Donations,02-Nov-21,2122/08,SME,N,
20027653,STRATFORD ST MARY PARISH COUNCIL,289.58,Street & Major Road Cleansing,Contributions & Donations,02-Nov-21,2122/08,SME,N,
10043896,SUDBURY COMMON LANDS CHARITY,"3,758.05",Open Spaces,Contracted Services,09-Nov-21,2122/08,SME,N,
10043896,SUDBURY COMMON LANDS CHARITY,"6,569.91",Open Spaces,Contracted Services,09-Nov-21,2122/08,SME,N,
10043868,SUDBURY TOWN COUNCIL,"1,810.00",RHSSF,Prof & Consultancy Fees,08-Nov-21,2122/08,SME,N,
10041238,SUFFOLK COUNTY COUNCIL,"3,792.59",Devt Policy & Local Plans,Prof & Consultancy Fees,28-Jun-21,2122/08,LGE,Y,50%
10043335,SUFFOLK COUNTY COUNCIL,"1,395.00",Land Chgs,Contracted Services,13-Oct-21,2122/08,LGE,N,
10043650,SUFFOLK COUNTY COUNCIL,300,Council House Adaptions,Improvements,26-Oct-21,2122/08,LGE,N,
10043830,SUFFOLK COUNTY COUNCIL,"17,675.50",Domestic Waste,MRF Disposal,04-Nov-21,2122/08,LGE,N,
10043830,SUFFOLK COUNTY COUNCIL,"15,229.68",Garden Waste,Garden Waste Disposal,04-Nov-21,2122/08,LGE,N,
10043869,SUFFOLK COUNTY COUNCIL,"18,966.00",ICT,Computer Equpt Purchases,05-Nov-21,2122/08,LGE,Y,50%
10043870,SUFFOLK COUNTY COUNCIL,"18,296.75",ICT,Computer Equpt Purchases,05-Nov-21,2122/08,LGE,Y,50%
10043974,SUFFOLK COUNTY COUNCIL,"3,167.70",ICT,Contracted Services,10-Nov-21,2122/08,LGE,Y,50%
10044052,SUFFOLK COUNTY COUNCIL,"1,180.00",Land Chgs,Contracted Services,15-Nov-21,2122/08,LGE,N,
10043662,FENN WRIGHT LLP,"1,125.00",General/Supervision & Mgmt,Prof & Consultancy Fees,28-Oct-21,2122/08,SME,N,
10043598,REED SPECIALIST RECRUITMENT LTD,762.38,Financial Servs,Agency Staff,17-Sep-21,2122/08,LGE,Y,50%
10043690,REED SPECIALIST RECRUITMENT LTD,517.14,Financial Servs,Agency Staff,22-Oct-21,2122/08,LGE,Y,50%
10043714,REED SPECIALIST RECRUITMENT LTD,835.46,Governance,Agency Staff,22-Oct-21,2122/08,LGE,Y,50%
10043715,REED SPECIALIST RECRUITMENT LTD,925.78,Governance,Agency Staff,22-Oct-21,2122/08,LGE,Y,50%
10043716,REED SPECIALIST RECRUITMENT LTD,846.75,Governance,Agency Staff,22-Oct-21,2122/08,LGE,Y,50%
10043848,REED SPECIALIST RECRUITMENT LTD,508.05,Governance,Agency Staff,05-Nov-21,2122/08,LGE,Y,50%
10043849,REED SPECIALIST RECRUITMENT LTD,647.37,Governance,Agency Staff,05-Nov-21,2122/08,LGE,Y,50%
10043850,REED SPECIALIST RECRUITMENT LTD,846.75,Governance,Agency Staff,05-Nov-21,2122/08,LGE,Y,50%
10044018,REED SPECIALIST RECRUITMENT LTD,487.31,Financial Servs,Agency Staff,05-Nov-21,2122/08,LGE,Y,50%
10044020,REED SPECIALIST RECRUITMENT LTD,835.46,Governance,Agency Staff,05-Nov-21,2122/08,LGE,Y,50%
10044021,REED SPECIALIST RECRUITMENT LTD,873.17,Governance,Agency Staff,05-Nov-21,2122/08,LGE,Y,50%
10044022,REED SPECIALIST RECRUITMENT LTD,835.46,Governance,Agency Staff,12-Nov-21,2122/08,LGE,Y,50%
10044139,REED SPECIALIST RECRUITMENT LTD,696.15,Financial Servs,Agency Staff,12-Nov-21,2122/08,LGE,Y,50%
10044140,REED SPECIALIST RECRUITMENT LTD,858.03,Governance,Agency Staff,12-Nov-21,2122/08,LGE,Y,50%
10044141,REED SPECIALIST RECRUITMENT LTD,699.64,Governance,Agency Staff,12-Nov-21,2122/08,LGE,Y,50%
10044142,REED SPECIALIST RECRUITMENT LTD,858.03,Governance,Agency Staff,12-Nov-21,2122/08,LGE,Y,50%
10043655,TELEFONICA UK LIMITED - O2,376.77,ICT,Telephone Costs,27-Oct-21,2122/08,LGE,Y,50%
10044272,TELEFONICA UK LIMITED - O2,371.51,ICT,Telephone Costs,27-Nov-21,2122/08,LGE,Y,50%
10043965,BT PAYMENT SERVICES,"4,928.40",ICT,Telephone Costs,04-Nov-21,2122/08,LGE,Y,50%
10043947,EAST OF ENGLAND CO-OPERATIVE SOCIETY LTD,"1,000.00",Events & Awards,Food & Drink,05-Oct-21,2122/08,LGE,Y,50%
20027670,GAZPROM ENERGY,121.61,Belle Vue House,Gas,19-Nov-21,2122/08,SME,N,
20027670,GAZPROM ENERGY,68.55,HQ Energy,Gas,19-Nov-21,2122/08,SME,N,
20027670,GAZPROM ENERGY,"2,091.54",Sheltered Accommodation,Gas,19-Nov-21,2122/08,SME,N,
20027670,GAZPROM ENERGY,188.19,Temporary Accommodation,Gas,19-Nov-21,2122/08,SME,N,
10043548,WHYBROW PROPERTY SOLUTIONS LTD,"1,568.28",Council House Adaptions,Improvements,22-Oct-21,2122/08,SME,N,
10043623,WHYBROW PROPERTY SOLUTIONS LTD,"1,052.11",Building Services,Repairs,26-Oct-21,2122/08,SME,N,
10044016,WHYBROW PROPERTY SOLUTIONS LTD,"10,000.00",Council House Adaptions,Improvements,11-Nov-21,2122/08,SME,N,
10044045,WHYBROW PROPERTY SOLUTIONS LTD,"15,274.00",Kitchens/Bathrooms,Improvements,22-Sep-21,2122/08,SME,N,
10044055,WHYBROW PROPERTY SOLUTIONS LTD,"8,958.36",Building Services,Repairs,11-Nov-21,2122/08,SME,N,
10044062,WHYBROW PROPERTY SOLUTIONS LTD,"9,485.00",Kitchens/Bathrooms,Improvements,03-Sep-21,2122/08,SME,N,
10043838,L A C CLEANING CONTRACTORS LIMITED,"1,855.00",Building Services,Repairs,05-Nov-21,2122/08,SME,N,
10044193,L A C CLEANING CONTRACTORS LIMITED,633.33,Sheltered Accommodation,General Cleaning,22-Nov-21,2122/08,SME,N,
10043771,ARMSTRONG YORK ASBESTOS ENVIRONMENTAL,"6,029.31",Asbestos Survey & Reinspection,Prof & Consultancy Fees,29-Oct-21,2122/08,SME,N,
10043087,CADCORP,"6,300.00",ICT,Software Licences (Corporate) ,30-Sep-21,2122/08,SME,Y,49%
10043612,CADCORP,"1,800.00",ICT,Software Licences (Corporate) ,26-Oct-21,2122/08,SME,Y,46%
10042665,COMMUNITY ACTION SUFFOLK,"2,000.00",Strategic Housing,Prof & Consultancy Fees,22-Jul-21,2122/08,SME,N,
10043827,CHILDCARE VOUCHER LTD EDENRED (UK GROUP),403.75,Health & Safety,Misc Employee Costs,05-Nov-21,2122/08,SME,Y,50%
10043844,OFFICE FOR NATIONAL STATISTICS,300,Economy & Business,Prof & Consultancy Fees,05-Nov-21,2122/08,LGE,Y,50%
10043719,OPUS PEOPLE SOLUTIONS LTD,"1,264.61",Current Liabilities,Agency Staff Holding A/C,28-Oct-21,2122/08,SME,N,
10043837,OPUS PEOPLE SOLUTIONS LTD,"1,095.28",Current Liabilities,Agency Staff Holding A/C,04-Nov-21,2122/08,SME,Y,9%
10044024,OPUS PEOPLE SOLUTIONS LTD,958.46,Current Liabilities,Agency Staff Holding A/C,11-Nov-21,2122/08,SME,Y,8%
10044105,OPUS PEOPLE SOLUTIONS LTD,"1,694.37",Current Liabilities,Agency Staff Holding A/C,18-Nov-21,2122/08,SME,Y,30%
10043860,ANNETTE FEENEY,"5,668.00",Devt Policy & Local Plans,Prof & Consultancy Fees,05-Nov-21,2122/08,ST,Y,50%
10043665,VERTAS GROUP LTD,"7,072.22",Central Postal Serv,Postage,28-Oct-21,2122/08,SME,Y,50%
10043831,VERTAS GROUP LTD,"10,713.60",Unapportionable Central OHs,Security Systems,31-Oct-21,2122/08,SME,N,
10043590,COLLINS SKIP HIRE,812.49,Building Services,Waste Disposal,25-Oct-21,2122/08,SME,Y,50%
10043707,COLLINS SKIP HIRE,541.66,Building Services,Waste Disposal,31-Oct-21,2122/08,SME,Y,50%
10043861,COLLINS SKIP HIRE,541.66,Building Services,Waste Disposal,08-Nov-21,2122/08,SME,Y,50%
10044060,COLLINS SKIP HIRE,"1,083.32",Building Services,Waste Disposal,15-Nov-21,2122/08,SME,Y,50%
10044100,COLLINS SKIP HIRE,270.83,Building Services,Waste Disposal,12-Nov-21,2122/08,SME,Y,50%
10043907,POSTURITE LTD,796,Organisational Devt,Health & Safety Training,09-Nov-21,2122/08,SME,Y,50%
10043901,4PRINCIPLES CONSTRUCTION LTD,"4,489.47",Mand Disabled Facilities Grant,Grants,09-Nov-21,2122/08,SME,N,
10044162,4PRINCIPLES CONSTRUCTION LTD,"5,754.09",Mand Disabled Facilities Grant,Grants,23-Nov-21,2122/08,SME,N,
10043721,"DUNCAN, CAMERON AND HUTCHINSON LTD","83,792.35","1-3 Queensland, Shotley",Major Contracts,29-Oct-21,2122/08,SME,N,
10043722,"DUNCAN, CAMERON AND HUTCHINSON LTD","64,600.00","11-12 Ipswich, Brantham",Major Contracts,29-Oct-21,2122/08,SME,N,
10043766,SUFFOLK MARKET EVENTS,500,Economy & Business,Prof & Consultancy Fees,03-Nov-21,2122/08,SME,N,
10044250,SUFFOLK MARKET EVENTS,500,Economy & Business,Prof & Consultancy Fees,26-Nov-21,2122/08,SME,N,
10044252,SUFFOLK MARKET EVENTS,416.56,RHSSF,"Equipment, Tools & Materials",26-Nov-21,2122/08,SME,Y,50%
10044252,SUFFOLK MARKET EVENTS,416.74,Innovate Local SIGIF,Misc Supplies & Services Costs,26-Nov-21,2122/08,SME,Y,50%
10044252,SUFFOLK MARKET EVENTS,166.7,BRRP-MarketTownVision&Invest,Prof & Consultancy Fees,26-Nov-21,2122/08,SME,Y,50%
10043465,ADVANCE SUPPLIES,263.3,Sheltered Accommodation,Cleaning Materials,27-Sep-21,2122/08,SME,N,
10044228,ADVANCE SUPPLIES,355.05,Sheltered Accommodation,Cleaning Materials,23-Nov-21,2122/08,SME,N,
10044229,ADVANCE SUPPLIES,251.11,Sheltered Accommodation,Cleaning Materials,23-Nov-21,2122/08,SME,N,
10043832,PRESTON ST MARY VILLAGE HALL COMMITTEE,"1,713.27",Comm Devt Grants,Grants,05-Nov-21,2122/08,SME,N,
10044035,PRESTON ST MARY VILLAGE HALL COMMITTEE,"28,215.28",CIL Funded REFCUS,Grants,15-Nov-21,2122/08,SME,N,
10044053,PRESTON ST MARY VILLAGE HALL COMMITTEE,"6,194.72",Comm Devt Grants,Grants,16-Nov-21,2122/08,SME,N,
10043652,HAYS SPECIALIST RECRUITMENT LTD,"1,022.68",HRA Accountancy,Agency Staff,28-Oct-21,2122/08,LGE,Y,50%
10043785,HAYS SPECIALIST RECRUITMENT LTD,945.21,HRA Accountancy,Agency Staff,03-Nov-21,2122/08,LGE,Y,50%
10043958,HAYS SPECIALIST RECRUITMENT LTD,"1,053.67",HRA Accountancy,Agency Staff,11-Nov-21,2122/08,LGE,Y,50%
10044002,RICHARD UTTING ASSOCIATES LLP,602.24,New Bld/acquisition,Purchase of Land & Buildings,12-Nov-21,2122/08,SME,N,
10044002,RICHARD UTTING ASSOCIATES LLP,432.76,"Wolsey Grange, Sproughton S106",Prof & Consultancy Fees,12-Nov-21,2122/08,SME,N,
10043691,PRIVATE LANDLORD,650,Guaranteed Rent Scheme,Rent Payable,01-Nov-21,2122/08,SME,N,
10043797,THE STOWMARKET GLASS COMPANY LTD,359.7,Building Services,Repairs,15-Oct-21,2122/08,SME,N,
10043020,EXACOM SYSTEMS LTD,"1,270.37",ICT,Software Licnse (Line of Bus) ,16-Sep-21,2122/08,SME,Y,50%
10044050,ROYAL HARWICH YACHT CLUB,"1,125.00",Suffolk Community Restart Fund,Grants,16-Nov-21,2122/08,SME,N,
20027661,RIX PETROLEUM (EAST ANGLIA) LTD,"1,102.16",Tenancy Services,Heating Oil,04-Nov-21,2122/08,SME,N,
20027661,RIX PETROLEUM (EAST ANGLIA) LTD,294.72,Wenham Depot,Heating Oil,04-Nov-21,2122/08,SME,Y,50%
10043718,KNOWLES ASSOCIATES TFM LTD,"73,279.59",Vehicle and Plant Renewals,Plant & Vehicle - Purchase,29-Oct-21,2122/08,SME,N,
10043750,NORTHUMBRIAN WATER LTD,"3,815.00",Sheltered Accommodation,Legionella Testing,02-Nov-21,2122/08,LGE,N,
10043872,STORETEC SERVICES LTD,563.1,ICT,"Equipment, Tools & Materials",31-Oct-21,2122/08,SME,Y,50%
10044011,GIPPING OCCUPATIONAL HEALTH LTD,578.57,Health & Safety,Subsistence,11-Nov-21,2122/08,SME,N,
10044222,GIPPING OCCUPATIONAL HEALTH LTD,578.57,Health & Safety,Contracted Services,24-Nov-21,2122/08,SME,N,
10043744,AIRMAX REMOTE LTD,441.61,Building Services,Plant & Vehicle - Other costs,31-Oct-21,2122/08,SME,Y,50%
10043593,TAYLORS FLOORING & FURNITURE,"21,650.00",Sheltered Units-Gen.Imp,Improvements,21-Oct-21,2122/08,SME,N,
10043530,ENGIE REGENERATION LTD,"14,571.03",Environmental Imps,Major Contracts,21-Oct-21,2122/08,LGE,N,
10043910,SKYGUARD LTD T/A PEOPLESAFE,330,Health & Safety,"Equipment, Tools & Materials",28-Oct-21,2122/08,SME,Y,50%
10043911,SKYGUARD LTD T/A PEOPLESAFE,"2,260.00",Health & Safety,"Equipment, Tools & Materials",15-Sep-21,2122/08,SME,Y,50%
10044115,JOHN FORD GROUP LTD,"7,466.71",Mand Disabled Facilities Grant,Grants,16-Nov-21,2122/08,SME,N,
10044261,JOHN FORD GROUP LTD,"7,419.00",Mand Disabled Facilities Grant,Grants,26-Nov-21,2122/08,SME,N,
10043717,RESIDENTIALLY CHARTERED SURVEYORS,550,"Bantocks Rd, Gt Walding S106",Prof & Consultancy Fees,20-Oct-21,2122/08,SME,N,
10043473,TOP FLOORS (EAST ANGLIA) LTD,420.75,Building Services,Repairs,13-Oct-21,2122/08,SME,N,
10044080,TOP FLOORS (EAST ANGLIA) LTD,510.73,Afghan Resettlement Programme,Furniture,15-Sep-21,2122/08,SME,N,
10044081,TOP FLOORS (EAST ANGLIA) LTD,541.2,Afghan Resettlement Programme,Furniture,22-Sep-21,2122/08,SME,N,
10044160,LUCY TAYLOR PHOTOGRAPHY,560,Events & Awards,Advertising&mkting (non-staff),22-Oct-21,2122/08,ST,Y,50%
10044113,SUDBURYS,440,Guaranteed Rent Scheme,Rent Payable,22-Nov-21,2122/08,SME,N,
10043817,ICENI,"4,505.12","Raydon Way, Gt Cornard",Prof & Consultancy Fees,04-Nov-21,2122/08,SME,N,
10043818,ICENI,"4,288.15",Waldingfield Rd S106 Andersons,Prof & Consultancy Fees,04-Nov-21,2122/08,SME,N,
10043819,ICENI,"4,288.15",Waldingfield Rd S106 Andersons,Prof & Consultancy Fees,04-Nov-21,2122/08,SME,N,
10043855,WILLIAM H BROWN ESTATE AGENTS - SUDBURY,725,Guaranteed Rent Scheme,Rent Payable,08-Nov-21,2122/08,SME,N,
10043226,AQUAM WATER SERVICES LTD,"1,422.77",Street & Major Road Cleansing,"Equipment, Tools & Materials",30-Sep-21,2122/08,SME,N,
10043892,PORTAL PLAN QUEST LTD,462,Devt Management -Applications,Planning Fees,08-Nov-21,2122/08,SME,N,
10043905,BELLWAY HOMES LIMITED (ESSEX DIVISION),"244,778.34",Bourne Hill Wherstead S106 acq,Prof & Consultancy Fees,02-Nov-21,2122/08,LGE,N,
10043779,A C LEIGH (NORWICH) LTD,277.24,Building Services,"Equipment, Tools & Materials",25-Oct-21,2122/08,SME,N,
10044005,3 POINT PROPERTY MANAGEMENT LTD,550,Guaranteed Rent Scheme,Rent Payable,15-Nov-21,2122/08,SME,N,
10043823,WEST SUFFOLK COUNCIL,500,Community Safety-CCTV,"Equipment, Tools & Materials",04-Nov-21,2122/08,LGE,N,
10044239,WEST SUFFOLK COUNCIL,"1,916.66",Mobile CCTV,Annual Bldg Maint Contracts,27-Oct-21,2122/08,LGE,N,
10044256,WEST SUFFOLK COUNCIL,"109,616.00",COVID Housing Fund,Misc Supplies & Services Costs,21-Oct-21,2122/08,LGE,N,
10043658,CHUBB - PENDANT & LANYARD ONLY,409,Sheltered Accommodation,Community Alarm Costs,25-Oct-21,2122/08,LGE,N,
10043733,CHUBB - PENDANT & LANYARD ONLY,488.8,Sheltered Accommodation,Community Alarm Costs,27-Oct-21,2122/08,LGE,N,
10043677,APTL ENTERPRISES LTD,"4,648.00",PV Panels,Contracted Services,31-Oct-21,2122/08,SME,Y,44%
10043686,APTL ENTERPRISES LTD,"3,652.00",PV Panels,Contracted Services,31-Oct-21,2122/08,SME,Y,44%
10043337,ANGLIA COMMERCIAL FLOORING LTD,575,Building Services,Repairs,13-Oct-21,2122/08,SME,N,
10043956,ANGLIA COMMERCIAL FLOORING LTD,288.36,Building Services,Repairs,10-Nov-21,2122/08,SME,N,
10043957,ANGLIA COMMERCIAL FLOORING LTD,371.03,Building Services,Repairs,10-Nov-21,2122/08,SME,N,
10043431,FLOWBIRD SMART CITY UK LIMITED,350.4,Sudb C Parks,Repairs,15-Oct-21,2122/08,SME,N,
20027666,ANGLIAN WATER BUS (NAT) LTD T/A WAVE,84.75,C Parks General,Water Rates - Metered,15-Nov-21,2122/08,LGE,N,
20027666,ANGLIAN WATER BUS (NAT) LTD T/A WAVE,633.16,Chilton Depot,Water Rates - Metered,15-Nov-21,2122/08,LGE,Y,50%
20027666,ANGLIAN WATER BUS (NAT) LTD T/A WAVE,4.06,Friars Meadow Sudb,Water Rates - Metered,15-Nov-21,2122/08,LGE,N,
20027666,ANGLIAN WATER BUS (NAT) LTD T/A WAVE,28.44,General Rechargeable Works,Misc Supplies & Services Costs,15-Nov-21,2122/08,LGE,N,
20027666,ANGLIAN WATER BUS (NAT) LTD T/A WAVE,53.79,HQ Energy,Water Rates - Metered,15-Nov-21,2122/08,LGE,N,
20027666,ANGLIAN WATER BUS (NAT) LTD T/A WAVE,955.82,Public Conveniences,Water Rates - Metered,15-Nov-21,2122/08,LGE,N,
20027666,ANGLIAN WATER BUS (NAT) LTD T/A WAVE,"1,165.36",Sheltered Accommodation,Water Rates - Metered,15-Nov-21,2122/08,LGE,N,
20027666,ANGLIAN WATER BUS (NAT) LTD T/A WAVE,126.86,Temporary Accommodation,Water Rates - Metered,15-Nov-21,2122/08,LGE,N,
20027666,ANGLIAN WATER BUS (NAT) LTD T/A WAVE,147.72,Tenancy Services,Water Rates - Metered,15-Nov-21,2122/08,LGE,N,
10044013,TAYLOR WIMPEY EAST ANGLIA,"9,816.85",Property Acquisition,Prof & Consultancy Fees,11-Nov-21,2122/08,SME,N,
10044013,TAYLOR WIMPEY EAST ANGLIA,"7,703.25","Wolsey Grange, Sproughton S106",Purchase of Land & Buildings,11-Nov-21,2122/08,SME,N,
20027672,IMSERV EUROPE LTD,238.3,Sheltered Accommodation,Electricity,22-Nov-21,2122/08,LGE,N,
20027672,IMSERV EUROPE LTD,47.66,Climate Change and Sustainabil,Electricity,22-Nov-21,2122/08,LGE,N,
10043741,STUDLEY CAPITAL LIMITED,"3,150.00","BRRP-Hamilton,Boreham&BelleVue",Prof & Consultancy Fees,02-Nov-21,2122/08,ST,N,
10043739,TIAA LTD,"4,250.00",Internal Audit,Contracted Services,01-Nov-21,2122/08,SME,Y,50%
10043660,LAND USE CONSULTANTS LTD,"1,500.00",Nghbrhd Plan Designations,Prof & Consultancy Fees,27-Oct-21,2122/08,SME,N,
10043834,LAND USE CONSULTANTS LTD,"5,437.00",Devt Policy & Local Plans,Prof & Consultancy Fees,31-Oct-21,2122/08,SME,Y,50%
10043968,LAND USE CONSULTANTS LTD,"1,500.00",Nghbrhd Plan Designations,Prof & Consultancy Fees,11-Nov-21,2122/08,SME,N,
10043669,PINSENT MASONS LLP,"6,012.50",Organisational Devt,Training,25-Oct-21,2122/08,LGE,Y,50%
10043670,PINSENT MASONS LLP,"6,012.50",Organisational Devt,Training,25-Oct-21,2122/08,LGE,Y,50%
10044112,REEFER PROPERTIES LTD,695,Guaranteed Rent Scheme,Rent Payable,22-Nov-21,2122/08,SME,N,
10043648,WADDINGTON BROWN LTD,"1,216.26",Organisational Devt,Agency Staff,25-Oct-21,2122/08,SME,Y,50%
10043659,WADDINGTON BROWN LTD,874.04,Organisational Devt,Agency Staff,18-Oct-21,2122/08,SME,Y,50%
10043703,WADDINGTON BROWN LTD,562.95,Organisational Devt,Agency Staff,25-Oct-21,2122/08,SME,Y,50%
10043704,WADDINGTON BROWN LTD,984.2,Organisational Devt,Agency Staff,25-Oct-21,2122/08,SME,Y,50%
10043760,WADDINGTON BROWN LTD,984.2,Organisational Devt,Agency Staff,01-Nov-21,2122/08,SME,Y,50%
10043761,WADDINGTON BROWN LTD,562.95,Organisational Devt,Agency Staff,01-Nov-21,2122/08,SME,Y,50%
10043762,WADDINGTON BROWN LTD,938.64,Organisational Devt,Agency Staff,01-Nov-21,2122/08,SME,Y,50%
10043918,WADDINGTON BROWN LTD,938.64,Organisational Devt,Agency Staff,08-Nov-21,2122/08,SME,Y,50%
10043919,WADDINGTON BROWN LTD,984.2,Organisational Devt,Agency Staff,08-Nov-21,2122/08,SME,Y,50%
10043920,WADDINGTON BROWN LTD,562.95,Organisational Devt,Agency Staff,08-Nov-21,2122/08,SME,Y,50%
10044074,WADDINGTON BROWN LTD,562.95,Organisational Devt,Agency Staff,15-Nov-21,2122/08,SME,Y,50%
10044075,WADDINGTON BROWN LTD,798,Organisational Devt,Agency Staff,15-Nov-21,2122/08,SME,Y,50%
10044076,WADDINGTON BROWN LTD,938.64,Organisational Devt,Agency Staff,15-Nov-21,2122/08,SME,Y,50%
10043865,UK ASBESTOS SPECIALISTS LTD,"1,000.00",Building Servs Tech Staff,Training,01-Nov-21,2122/08,SME,Y,50%
10043858,PRIVATE LANDLORD,650,Guaranteed Rent Scheme,Rent Payable,08-Nov-21,2122/08,ST,N,
10044114,PRIVATE LANDLORD,650,Guaranteed Rent Scheme,Rent Payable,22-Nov-21,2122/08,SME,N,
10044110,PRIVATE LANDLORD,"1,198.00",Guaranteed Rent Scheme,Rent Payable,22-Nov-21,2122/08,ST,N,
10044073,CAPITA BUSINESS SERVICES LTD (PAY360),"1,304.32",Bank Chgs,Bank Charges,17-Nov-21,2122/08,LGE,N,
10043702,PRIVATE LANDLORD,490,Guaranteed Rent Scheme,Rent Payable,01-Nov-21,2122/08,SME,N,
10043625,AMPLIS CONSTRUCTION LTD,"22,937.71","Fences, Gates and Walls",Major Contracts,26-Oct-21,2122/08,SME,N,
10043726,PRIVATE LANDLORD,786.5,Guaranteed Rent Scheme,Rent Payable,02-Nov-21,2122/08,ST,N,
10043897,PRIVATE LANDLORD,650,Guaranteed Rent Scheme,Rent Payable,09-Nov-21,2122/08,ST,N,
10043811,CORENERGY LIMITED,"2,854.00",Public Sector Decarbonisation,Contracted Services,31-Oct-21,2122/08,SME,N,
10043812,CORENERGY LIMITED,"72,831.00",Public Sector Decarbonisation,Contracted Services,31-Oct-21,2122/08,SME,N,
10043847,COUNTRYSTYLE RECYCLING LTD,251.62,Bring Sites,Contracted Services,31-Oct-21,2122/08,SME,N,
10043836,ANDERSON DESIGN & BUILD LIMITED,"101,575.29",Waldingfield Rd S106 Andersons,Prof & Consultancy Fees,27-Oct-21,2122/08,SME,N,
10043906,ANDERSON DESIGN & BUILD LIMITED,"228,470.81",Waldingfield Rd S106 Andersons,Prof & Consultancy Fees,29-Sep-21,2122/08,SME,N,
10043696,DGL QUALITY MANAGEMENT LTD,560,"1-3 Queensland, Shotley",Prof & Consultancy Fees,31-Oct-21,2122/08,SME,N,
10043697,DGL QUALITY MANAGEMENT LTD,560,"11-12 Ipswich, Brantham",Prof & Consultancy Fees,31-Oct-21,2122/08,SME,N,
10044161,TRUETECH INTEGRATED LTD,950,Community Safety-CCTV,"Equipment, Tools & Materials",18-Nov-21,2122/08,SME,N,
10043857,PRIVATE LANDLORD,650,Guaranteed Rent Scheme,Rent Payable,08-Nov-21,2122/08,ST,N,
10044148,QUEUE TECHNOLOGY LTD,"2,399.00",Business Innovation Grants,Grants,19-Nov-21,2122/08,SME,N,
10043854,PRIVATE LANDLORD,800,Guaranteed Rent Scheme,Rent Payable,08-Nov-21,2122/08,SME,N,
10043630,SWECO UK LTD,"6,150.00",Devt Management -Applications,Highways  Consultancy,26-Oct-21,2122/08,LGE,N,
10044111,PRIVATE LANDLORD,550,Guaranteed Rent Scheme,Rent Payable,22-Nov-21,2122/08,ST,N,
10043770,NWES PROPERTY SERVICES LTD,620,Major Imps,Rent Payable,01-Nov-21,2122/08,SME,N,
10043828,T J WHITE PLUMBING & HEATING,"2,850.00",Mand Disabled Facilities Grant,Grants,04-Nov-21,2122/08,SME,N,
10043438,DAVID TOLSON PARTNERSHIP LTD,"5,512.50",Tenancy Services,Prof & Consultancy Fees,08-Sep-21,2122/08,SME,N,
10043693,PRIVATE LANDLORD,"1,200.00",Guaranteed Rent Scheme,Rent Payable,01-Nov-21,2122/08,SME,N,
10044101,MAJESTIC GROUP LTD T/A MAJESTIC TREES,803,Public Tree Programme,Tree felling/maintenance,08-Nov-21,2122/08,SME,N,
10043692,PRIVATE LANDLORD,550,Guaranteed Rent Scheme,Rent Payable,01-Nov-21,2122/08,ST,N,
10043751,IPSERV LTD,681.09,Communications,Commercial Printing,01-Nov-21,2122/08,SME,Y,62%
10043751,IPSERV LTD,259.56,Central Printing,Commercial Printing,01-Nov-21,2122/08,SME,N,
10043706,AGENTS MUTUAL LTD,645,"Angel Court, Hadleigh",Prof & Consultancy Fees,30-Sep-21,2122/08,SME,N,
10043829,AGENTS MUTUAL LTD,645,"Angel Court, Hadleigh",Prof & Consultancy Fees,31-Oct-21,2122/08,SME,N,
10043820,JACKSON LIFT SERVICES LTD,"1,041.65",Sheltered Accommodation,Plant Maintenance,04-Nov-21,2122/08,LGE,N,
10043856,DAVID BURR LETTINGS,700,Guaranteed Rent Scheme,Rent Payable,08-Nov-21,2122/08,SME,N,
10044068,GREENTECH LTD,755,Devt Management -Applications,Biodiversity Task Force,03-Nov-21,2122/08,SME,N,
10043767,RICHARD WILLS TRAINING ASSOCIATES LTD,850,Management Team,Prof & Consultancy Fees,03-Nov-21,2122/08,ST,Y,50%
10043768,RICHARD WILLS TRAINING ASSOCIATES LTD,610,Governance,Prof & Consultancy Fees,03-Nov-21,2122/08,ST,N,
10044136,FOURWAYS VEHICLE SOLUTIONS LTD,511,Building Services,Lease Cars - Payment,01-Nov-21,2122/08,SME,Y,50%
10044216,HIGGINS REMOVALS,800,Homelessness Private Sector,Removal Expenses,11-Nov-21,2122/08,ST,N,
10044006,PRIVATE LANDLORD,715,Guaranteed Rent Scheme,Rent Payable,15-Nov-21,2122/08,SME,N,
10044138,THE PLANNING INSPECTORATE,"63,390.59",Devt Policy & Local Plans,Prof & Consultancy Fees,10-Nov-21,2122/08,LGE,Y,50%
20027660,MARQUIS ESTATES,"1,030.00",Rent Deposit Scheme,Misc Premises Costs,03-Nov-21,2122/08,SME,N,
10043941,BADENOCH & CLARK LTD,"1,464.00",Commissioning & Procurement,Agency Staff,05-Nov-21,2122/08,SME,Y,50%
10044179,BADENOCH & CLARK LTD,"2,440.00",Commissioning & Procurement,Agency Staff,15-Nov-21,2122/08,SME,Y,50%
10044180,BADENOCH & CLARK LTD,"2,440.00",Commissioning & Procurement,Agency Staff,08-Nov-21,2122/08,SME,Y,50%
10044181,BADENOCH & CLARK LTD,"2,440.00",Commissioning & Procurement,Agency Staff,22-Nov-21,2122/08,SME,Y,50%
10043727,GUIDEEAST,350,RHSSF,Prof & Consultancy Fees,21-Oct-21,2122/08,SME,N,
10043784,GUIDEEAST,350,RHSSF,Advertising&mkting (non-staff),02-Nov-21,2122/08,SME,N,
10043776,SHJ HOMES LTD,500,Guaranteed Rent Scheme,Rent Payable,04-Nov-21,2122/08,SME,N,
10044044,PROFESSIONAL DEVELOPMENT GROUP T/A GOVER,"1,067.00",Homelessness Private Sector,Misc Supplies & Services Costs,03-Nov-21,2122/08,SME,N,
10044017,THE WEIGEL CLINIC LTD,760,Organisational Devt,Contracted Services,06-Oct-21,2122/08,SME,Y,50%
10044067,JARVIS BUILDING CONTRACTORS LTD,"11,827.24",Renovation/Home Repair Grants,Grants,27-Oct-21,2122/08,SME,N,
10044064,EAST BERGHOLT BOWLS CLUB,"1,020.00",Suffolk Community Restart Fund,Grants,16-Nov-21,2122/08,SME,N,
10044165,BOURNE & CO PROPERTY LET & MANAGE LTD,525,Guaranteed Rent Scheme,Rent Payable,23-Nov-21,2122/08,SME,N,
984,BLUE FLAME (COLCHESTER) LTD,-689.56,Rewiring,Improvements,15-Sep-21,2122/08,SME,N,
10044096,BLUE FLAME (COLCHESTER) LTD,-448.97,Planned Maint - Heating,Property Servicing,19-Apr-21,2122/08,SME,N,
10044097,BLUE FLAME (COLCHESTER) LTD,-436.88,Planned Maint - Heating,Property Servicing,27-Aug-19,2122/08,SME,N,
987,BT REDCARE,"-2,743.03",Community Safety-CCTV,Telephone Costs,19-Nov-21,2122/08,LGE,N,
221,GUIDEEAST,-350,RHSSF,Prof & Consultancy Fees,03-Nov-21,2122/08,SME,N,
10044591,ACADEMY BUILDING CONTRACTS LTD,"1,197.70",Major Imps,Improvements,09-Dec-21,2122/09,SME,N,
10044396,AE WHITE SURFACING,"1,288.00",Sudb C Parks,Repairs,30-Nov-21,2122/09,SME,N,
10044768,AE WHITE SURFACING,"3,737.00",Estate Imps/parking areas,Improvements,14-Dec-21,2122/09,SME,N,
10044871,ANGLIAN WATER,608.53,Water Sampling,Sampling & Analysis,20-Dec-21,2122/09,LGE,N,
10044353,ARLINGCLOSE LTD,484.02,Treasury Management,Contracted Services,30-Nov-21,2122/09,SME,N,
10044759,ARLINGCLOSE LTD,"11,625.00",Treasury Management,Contracted Services,16-Dec-21,2122/09,SME,N,
10044306,BLUE FLAME (COLCHESTER) LTD,"24,381.47",Planned Maint - Heating,Property Servicing,29-Nov-21,2122/09,SME,N,
10044816,BLUE FLAME (COLCHESTER) LTD,"24,381.47",Planned Maint - Heating,Property Servicing,22-Nov-21,2122/09,SME,N,
10044817,BLUE FLAME (COLCHESTER) LTD,"24,381.47",Planned Maint - Heating,Property Servicing,27-Oct-21,2122/09,SME,N,
20027680,BLUE FLAME (COLCHESTER) LTD,"9,722.40",Current Liabilities,Cert IBS Creditors Holding ac,01-Dec-21,2122/09,SME,N,
20027685,BLUE FLAME (COLCHESTER) LTD,"18,751.79",Current Liabilities,Cert IBS Creditors Holding ac,08-Dec-21,2122/09,SME,N,
20027691,BLUE FLAME (COLCHESTER) LTD,"33,177.36",Current Liabilities,Cert IBS Creditors Holding ac,15-Dec-21,2122/09,SME,N,
20027701,BLUE FLAME (COLCHESTER) LTD,"10,814.55",Current Liabilities,Cert IBS Creditors Holding ac,22-Dec-21,2122/09,SME,N,
10044465,BOTTOMLINE TECHNOLOGIES,667.8,ICT,Software Licnse (Line of Bus) ,30-Nov-21,2122/09,LGE,Y,50%
10044574,BOWER FULLER,533.5,Sheltered Accommodation,Fire Prevention,30-Nov-21,2122/09,SME,N,
10044575,BOWER FULLER,369.5,Sheltered Accommodation,Fire Prevention,30-Nov-21,2122/09,SME,N,
10044583,BOWER FULLER,"2,878.20",Tenancy Services,Fire Prevention,30-Nov-21,2122/09,SME,N,
10044584,BOWER FULLER,513.63,Building Services,Repairs,30-Nov-21,2122/09,SME,N,
10044585,BOWER FULLER,254.86,Street & Major Road Cleansing,"Equipment, Tools & Materials",30-Nov-21,2122/09,SME,N,
10044610,BOWER FULLER,327.93,Sheltered Accommodation,Electricity,06-Dec-21,2122/09,SME,N,
10044611,BOWER FULLER,"6,967.20",Tenancy Services,Fire Prevention,08-Dec-21,2122/09,SME,N,
10044612,BOWER FULLER,"1,477.20",Tenancy Services,Fire Prevention,08-Dec-21,2122/09,SME,N,
10044651,BOWER FULLER,"3,883.20",Tenancy Services,Fire Prevention,02-Aug-21,2122/09,SME,N,
10044652,BOWER FULLER,"2,072.73",Sheltered Units-Gen.Imp,Improvements,02-Aug-21,2122/09,SME,N,
10044508,CAPITA BUSINESS SERVICES LTD,750,General/Supervision & Mgmt,Prof & Consultancy Fees,06-Dec-21,2122/09,LGE,Y,50%
10044509,CAPITA BUSINESS SERVICES LTD,"1,000.00",General/Supervision & Mgmt,Prof & Consultancy Fees,06-Dec-21,2122/09,LGE,Y,50%
10044762,CAPITA BUSINESS SERVICES LTD,"2,000.00",Building Services,Contracted Services,15-Dec-21,2122/09,LGE,Y,50%
10044642,CHIPSIDE LTD,290.25,Sudb C Parks,Contracted Services,30-Nov-21,2122/09,SME,N,
10044814,CLARKE FENCING LTD,414.07,RHSSF,"Equipment, Tools & Materials",20-Dec-21,2122/09,SME,N,
10044109,D W ADAMS LTD,308,Building Services,Repairs,18-Nov-21,2122/09,SME,N,
10044147,D W ADAMS LTD,"1,172.03",Council House Adaptions,Improvements,19-Nov-21,2122/09,SME,N,
10044212,D W ADAMS LTD,"4,686.00",Council House Adaptions,Improvements,19-Nov-21,2122/09,SME,N,
10044251,D W ADAMS LTD,"4,182.00",Council House Adaptions,Improvements,26-Nov-21,2122/09,SME,N,
10044422,D W ADAMS LTD,"1,001.00",Building Services,Repairs,02-Dec-21,2122/09,SME,N,
10044424,D W ADAMS LTD,"1,001.00",Building Services,Repairs,02-Dec-21,2122/09,SME,N,
10044425,D W ADAMS LTD,"4,646.00",Building Services,Contracted Services,02-Dec-21,2122/09,SME,N,
10044426,D W ADAMS LTD,"4,633.00",Council House Adaptions,Improvements,02-Dec-21,2122/09,SME,N,
10044630,D W ADAMS LTD,800,Building Services,Repairs,10-Dec-21,2122/09,SME,N,
10044745,D W ADAMS LTD,"4,995.00",Council House Adaptions,Improvements,16-Dec-21,2122/09,SME,N,
10044528,DMA HEALTH AND SAFETY LTD,300,Disabled Facilities (Revenue),Repairs,07-Dec-21,2122/09,SME,N,
10044529,DMA HEALTH AND SAFETY LTD,735,Insulation Imps,Prof & Consultancy Fees,07-Dec-21,2122/09,SME,N,
10044933,DOLPHIN STAIRLIFTS (EAST ANGLIA) LTD,"3,867.00",Mand Disabled Facilities Grant,Grants,24-Dec-21,2122/09,SME,N,
10044358,ENER-G SWITCH2 LTD,818.2,Temporary Accommodation,Repairs,30-Nov-21,2122/09,SME,N,
10044288,ENGLISH SECURITY,304.96,Sheltered Accommodation,Emergency Lighting,12-Nov-21,2122/09,SME,N,
10044289,ENGLISH SECURITY,"1,810.10",Sheltered Accommodation,Fire Prevention,12-Nov-21,2122/09,SME,N,
10044291,ENGLISH SECURITY,327.72,Tenancy Services,Repairs,12-Nov-21,2122/09,SME,N,
10044551,ENGLISH SECURITY,75,Tenancy Services,Fire Prevention,02-Dec-21,2122/09,SME,N,
10044551,ENGLISH SECURITY,230,Sheltered Accommodation,Community Alarm Costs,02-Dec-21,2122/09,SME,N,
10044133,ENVIROVENT LTD,460,Building Services,Repairs,17-Nov-21,2122/09,SME,N,
10044230,ENVIROVENT LTD,460,Building Services,Repairs,22-Nov-21,2122/09,SME,N,
10044232,ENVIROVENT LTD,460,Building Services,Repairs,22-Nov-21,2122/09,SME,N,
10044247,ENVIROVENT LTD,928.36,Building Services,Repairs,23-Nov-21,2122/09,SME,N,
10044248,ENVIROVENT LTD,460,Building Services,Repairs,23-Nov-21,2122/09,SME,N,
10044461,FELGAINS CARE CENTRE,"1,672.00",Kingfisher Leisure Centre,Repairs,19-Nov-21,2122/09,SME,N,
10044628,FELLBRIDGE BUILDING SERVICES,"8,239.86",Building Services,Repairs,09-Dec-21,2122/09,SME,N,
10044366,FORE-MOST GARAGE DOORS LTD,833.13,Building Services,Repairs,30-Nov-21,2122/09,SME,N,
10044531,GB ADAPTIONS LTD,"6,558.00",Mand Disabled Facilities Grant,Grants,07-Dec-21,2122/09,SME,N,
10044636,GB ADAPTIONS LTD,"4,096.00",Mand Disabled Facilities Grant,Grants,10-Dec-21,2122/09,SME,N,
10044821,GB ADAPTIONS LTD,"6,677.00",Mand Disabled Facilities Grant,Grants,20-Dec-21,2122/09,SME,N,
10044542,G4S CASH SOLUTIONS LTD,326.4,Financial Servs,Contracted Services,30-Nov-21,2122/09,LGE,N,
10044411,GHB ROOFING,990,Building Services,Repairs,30-Nov-21,2122/09,SME,N,
10044412,GHB ROOFING,"1,170.00",Building Services,Repairs,30-Nov-21,2122/09,SME,N,
10044413,GHB ROOFING,"1,220.00",Building Services,Repairs,30-Nov-21,2122/09,SME,N,
10044414,GHB ROOFING,"1,660.96",Building Services,Repairs,30-Nov-21,2122/09,SME,N,
10044415,GHB ROOFING,"1,290.00",Building Services,Repairs,30-Nov-21,2122/09,SME,N,
10044416,GHB ROOFING,"1,370.00",Building Services,Repairs,30-Nov-21,2122/09,SME,N,
10044417,GHB ROOFING,"11,505.00",Roofing,Improvements,30-Nov-21,2122/09,SME,N,
10044468,GHB ROOFING,"14,216.80",Roofing,Major Contracts,24-Nov-21,2122/09,SME,N,
10044697,GHB ROOFING,"10,925.00",Kingfisher Leisure Centre,Repairs,30-Nov-21,2122/09,SME,N,
10044510,HAYES DIGGINS BUILDERS,"14,240.00",Assets & Development,Repairs,06-Dec-21,2122/09,SME,N,
10044666,HAYES DIGGINS BUILDERS,"1,480.00",Kingfisher Leisure Centre,Repairs,13-Dec-21,2122/09,SME,N,
10044274,HAYMARKET BUSINESS MEDIA,299,Open Spaces,Subscriptions,29-Sep-21,2122/09,LGE,N,
10044907,HOUSEMARK LTD,"3,400.00",General/Supervision & Mgmt,Contracted Services,22-Dec-21,2122/09,SME,Y,50%
10044459,KEN GRIME & SON LTD,"1,006.48",Building Services,Repairs,03-Dec-21,2122/09,SME,N,
10044419,KENDA-CLEAN,27,Chilton Depot,Window Cleaning,30-Nov-21,2122/09,SME,Y,50%
10044419,KENDA-CLEAN,43,Old School House,Window Cleaning,30-Nov-21,2122/09,SME,N,
10044419,KENDA-CLEAN,"1,217.00",Sheltered Accommodation,Window Cleaning,30-Nov-21,2122/09,SME,N,
10044419,KENDA-CLEAN,80,Temporary Accommodation,Window Cleaning,30-Nov-21,2122/09,SME,N,
10044419,KENDA-CLEAN,771,Tenancy Services,Window Cleaning,30-Nov-21,2122/09,SME,N,
10044041,M & H CIVIL ENGINEERING LTD,963.5,Building Services,Repairs,15-Nov-21,2122/09,SME,N,
10044220,M & H CIVIL ENGINEERING LTD,"2,532.80",Building Services,Repairs,23-Nov-21,2122/09,SME,N,
10044287,M & H CIVIL ENGINEERING LTD,523.33,Building Services,Repairs,26-Nov-21,2122/09,SME,N,
10044380,M & H CIVIL ENGINEERING LTD,744,Building Services,Repairs,01-Dec-21,2122/09,SME,N,
10044514,MALJON TIMBER PRESERVATION LTD,"1,154.00",Dampness & Condensation,Repairs,02-Dec-21,2122/09,SME,N,
10044540,MALJON TIMBER PRESERVATION LTD,385,Dampness & Condensation,Repairs,07-Dec-21,2122/09,SME,N,
10044773,MALJON TIMBER PRESERVATION LTD,390,Dampness & Condensation,Repairs,16-Dec-21,2122/09,SME,N,
10044522,MATERIAL CHANGE COMPOSTING LTD,"2,041.90",Open Spaces,Waste Disposal,30-Nov-21,2122/09,LGE,N,
10044553,MATERIAL CHANGE COMPOSTING LTD,"1,954.39",Open Spaces,Waste Disposal,30-Nov-21,2122/09,LGE,N,
10044571,MERCURY BUILDING SERVICES LTD,"9,680.00",Kingfisher Leisure Centre,Repairs,08-Dec-21,2122/09,SME,N,
10044571,MERCURY BUILDING SERVICES LTD,615,Kingfisher Leisure Centre,Repairs,08-Dec-21,2122/09,SME,N,
10044742,MONTHIND CLEAN LTD,624.43,Jnt Waste Contract,General Cleaning,15-Dec-21,2122/09,LGE,Y,50%
10043964,NORFOLK COUNTY COUNCIL,"4,734.72",Strategic Housing,Subscriptions,29-Oct-21,2122/09,LGE,N,
10044558,ORWELL HOUSING ASSOCIATION LTD,"54,022.00",Sheltered Accommodation,Contracted Services,31-Oct-21,2122/09,LGE,N,
10044559,ORWELL HOUSING ASSOCIATION LTD,"53,617.00",Sheltered Accommodation,Contracted Services,31-Oct-21,2122/09,LGE,N,
10044560,ORWELL HOUSING ASSOCIATION LTD,471.32,Sheltered Accommodation,Grds Maint Contract,31-Oct-21,2122/09,LGE,N,
10044561,ORWELL HOUSING ASSOCIATION LTD,471.32,Sheltered Accommodation,Grds Maint Contract,31-Oct-21,2122/09,LGE,N,
10044562,ORWELL HOUSING ASSOCIATION LTD,471.32,Sheltered Accommodation,Grds Maint Contract,31-Oct-21,2122/09,LGE,N,
10044563,ORWELL HOUSING ASSOCIATION LTD,471.32,Sheltered Accommodation,Grds Maint Contract,31-Oct-21,2122/09,LGE,N,
10044564,ORWELL HOUSING ASSOCIATION LTD,353.48,Sheltered Accommodation,Grds Maint Contract,31-Oct-21,2122/09,LGE,N,
10044565,ORWELL HOUSING ASSOCIATION LTD,353.48,Sheltered Accommodation,Grds Maint Contract,31-Oct-21,2122/09,LGE,N,
10044566,ORWELL HOUSING ASSOCIATION LTD,353.48,Sheltered Accommodation,Grds Maint Contract,31-Oct-21,2122/09,LGE,N,
10044567,ORWELL HOUSING ASSOCIATION LTD,353.48,Sheltered Accommodation,Horticultural Purchases,31-Oct-21,2122/09,LGE,N,
10044387,PAPERWORK (UK) LTD,361,Sudb C Parks,Ticketing,30-Nov-21,2122/09,SME,N,
10044832,PLASUFIX LTD,"16,923.87",Roofing,Major Contracts,30-Sep-21,2122/09,SME,N,
10044834,PLASUFIX LTD,"28,781.58",Roofing,Major Contracts,01-Nov-21,2122/09,SME,N,
10044349,PRO-FLAT SPECIALIST SERVICES LTD,"6,311.00",Roofing,Improvements,30-Nov-21,2122/09,SME,N,
10044650,PRO-FLAT SPECIALIST SERVICES LTD,"6,311.00",Roofing,Improvements,09-Dec-21,2122/09,SME,N,
10044790,PRO-FLAT SPECIALIST SERVICES LTD,931,Building Services,Repairs,17-Dec-21,2122/09,SME,N,
10044027,REID PLUMBING & HEATING CONTRACTORS LTD,"9,281.09",Central Heating,Major Contracts,13-Nov-21,2122/09,SME,N,
10044051,REID PLUMBING & HEATING CONTRACTORS LTD,"5,202.37",Central Heating,Major Contracts,16-Nov-21,2122/09,SME,N,
10044086,REID PLUMBING & HEATING CONTRACTORS LTD,"10,584.29",Central Heating,Major Contracts,17-Nov-21,2122/09,SME,N,
10044166,REID PLUMBING & HEATING CONTRACTORS LTD,"23,390.47",Central Heating,Major Contracts,23-Nov-21,2122/09,SME,N,
10044254,REID PLUMBING & HEATING CONTRACTORS LTD,"18,823.35",Central Heating,Major Contracts,26-Nov-21,2122/09,SME,N,
10044340,REID PLUMBING & HEATING CONTRACTORS LTD,"30,343.52",Central Heating,Major Contracts,01-Dec-21,2122/09,SME,N,
10044550,REID PLUMBING & HEATING CONTRACTORS LTD,"30,211.58",Central Heating,Major Contracts,08-Dec-21,2122/09,SME,N,
10044572,REID PLUMBING & HEATING CONTRACTORS LTD,"28,400.70",Central Heating,Major Contracts,08-Dec-21,2122/09,SME,N,
10044715,REID PLUMBING & HEATING CONTRACTORS LTD,"29,421.31",Central Heating,Major Contracts,14-Dec-21,2122/09,SME,N,
10044720,REID PLUMBING & HEATING CONTRACTORS LTD,"9,383.50",Central Heating,Major Contracts,14-Dec-21,2122/09,SME,N,
10044334,SOLACE GROUP LTD,287.5,Management Team,Training,24-Dec-21,2122/09,SME,Y,50%
10044409,SOLACE GROUP LTD,640,Organisational Devt,Training,30-Nov-21,2122/09,SME,Y,50%
10044409,SOLACE GROUP LTD,640,Cost of Democracy,Member's Courses & Conferences,30-Nov-21,2122/09,SME,N,
10044119,SUREFIX,950,Building Services,Repairs,16-Nov-21,2122/09,SME,N,
10044121,SUREFIX,750,Building Services,Repairs,19-Nov-21,2122/09,SME,N,
10044122,SUREFIX,"1,450.00",Building Services,Repairs,17-Nov-21,2122/09,SME,N,
10044124,SUREFIX,"1,250.00",Building Services,Repairs,15-Nov-21,2122/09,SME,N,
10044126,SUREFIX,"1,600.00",Building Services,Repairs,16-Nov-21,2122/09,SME,N,
10044175,SUREFIX,405,Building Services,Repairs,01-Sep-21,2122/09,SME,N,
10044439,SUREFIX,"6,150.00",Window & Door Rplcmts,Improvements,29-Nov-21,2122/09,SME,N,
10044440,SUREFIX,274.77,Building Services,Repairs,29-Nov-21,2122/09,SME,N,
10044446,SUREFIX,900,Building Services,Repairs,30-Nov-21,2122/09,SME,N,
10044450,SUREFIX,855.65,Building Services,Repairs,02-Dec-21,2122/09,SME,N,
10044451,SUREFIX,814.18,Building Services,Repairs,02-Dec-21,2122/09,SME,N,
10044533,SUREFIX,294.29,Building Services,Repairs,03-Dec-21,2122/09,SME,N,
10044623,SUREFIX,932.63,Building Services,Repairs,08-Dec-21,2122/09,SME,N,
10044624,SUREFIX,454.55,Building Services,Repairs,07-Dec-21,2122/09,SME,N,
10044625,SUREFIX,498.89,Building Services,Repairs,03-Dec-21,2122/09,SME,N,
10044626,SUREFIX,950,Building Services,Repairs,09-Dec-21,2122/09,SME,N,
10044475,TANKCHANGE LTD,"2,095.00",Central Heating,Improvements,13-Nov-21,2122/09,SME,N,
10044476,TANKCHANGE LTD,345,Building Services,Repairs,01-Dec-21,2122/09,SME,N,
10044477,TANKCHANGE LTD,345,Central Heating,Improvements,01-Dec-21,2122/09,SME,N,
10044694,TDT ENTERPRISES LTD,435.6,Tenancy Services,Repairs,13-Dec-21,2122/09,SME,N,
10044709,TDT ENTERPRISES LTD,316,Wenham Depot,Repairs,14-Dec-21,2122/09,SME,Y,50%
10044172,THERMATECH,700,Tenancy Services,Fire Prevention,22-Nov-21,2122/09,SME,N,
10044173,THERMATECH,475,Tenancy Services,Fire Prevention,22-Nov-21,2122/09,SME,N,
10044259,THERMATECH,"1,043.20",Tenancy Services,Fire Prevention,26-Nov-21,2122/09,SME,N,
10044264,VALUATION OFFICE AGENCY,"1,000.00",Devt Management -Applications,Viability,26-Nov-21,2122/09,LGE,N,
10044469,WINDIMAN LTD,735,Building Services,Repairs,30-Nov-21,2122/09,SME,N,
10044774,WINDIMAN LTD,735,Building Services,Repairs,25-Nov-21,2122/09,SME,N,
10044781,WINDIMAN LTD,735,Building Services,Repairs,16-Dec-21,2122/09,SME,N,
10044795,WINDIMAN LTD,735,Building Services,Repairs,16-Dec-21,2122/09,SME,N,
10044338,ARCHANT COMMUNITY MEDIA LTD,273.46,GF - Misc Capital Receipts,Advertising&mkting (non-staff),27-Nov-21,2122/09,LGE,N,
10044400,ARCHANT COMMUNITY MEDIA LTD,410.97,Devt Management -Applications,Advertising&mkting (non-staff),20-Nov-21,2122/09,LGE,N,
10044926,ARCHANT COMMUNITY MEDIA LTD,525,Devt Management -Applications,Advertising&mkting (non-staff),30-Nov-21,2122/09,LGE,N,
10044658,CHUBB FIRE & SECURITY LTD,"3,670.87",Sheltered Accommodation,Repairs,10-Dec-21,2122/09,LGE,N,
10043672,IDOX SOFTWARE LTD,"5,225.00",ICT - CapsUniform,Prof & Consultancy Fees,29-Oct-21,2122/09,SME,Y,50%
10044360,IDOX SOFTWARE LTD,"1,500.00",ICT,Prof & Consultancy Fees,30-Nov-21,2122/09,SME,Y,50%
10044924,IDOX SOFTWARE LTD,"4,750.00",ICT - CapsUniform,Prof & Consultancy Fees,23-Dec-21,2122/09,SME,Y,50%
20027692,EDF ENERGY,342.25,Belle Vue House,Electricity,14-Dec-21,2122/09,LGE,N,
20027692,EDF ENERGY,899.4,C Parks General,Electricity,14-Dec-21,2122/09,LGE,N,
20027692,EDF ENERGY,4.84,Calais St Depot,Electricity,14-Dec-21,2122/09,LGE,N,
20027692,EDF ENERGY,"1,096.35",Chilton Depot,Electricity,14-Dec-21,2122/09,LGE,Y,50%
20027692,EDF ENERGY,393.54,Climate Change and Sustainabil,Electricity,14-Dec-21,2122/09,LGE,N,
20027692,EDF ENERGY,84.4,Community Safety-CCTV,Electricity,14-Dec-21,2122/09,LGE,N,
20027692,EDF ENERGY,15.2,Hadl Market,Electricity,14-Dec-21,2122/09,LGE,N,
20027692,EDF ENERGY,"4,034.51",Hadleigh Pool,Electricity,14-Dec-21,2122/09,LGE,N,
20027692,EDF ENERGY,9.4,Headquarters General,Electricity,14-Dec-21,2122/09,LGE,N,
20027692,EDF ENERGY,786.5,HQ Energy,Electricity,14-Dec-21,2122/09,LGE,N,
20027692,EDF ENERGY,48.08,Old School House,Electricity,14-Dec-21,2122/09,LGE,N,
20027692,EDF ENERGY,316.74,Public Conveniences,Electricity,14-Dec-21,2122/09,LGE,N,
20027692,EDF ENERGY,197.43,Sewage Treatment Works,Electricity,14-Dec-21,2122/09,LGE,N,
20027692,EDF ENERGY,"9,559.64",Sheltered Accommodation,Electricity,14-Dec-21,2122/09,LGE,N,
20027692,EDF ENERGY,184.23,SP Comm Alarms (Non-SH),Electricity,14-Dec-21,2122/09,LGE,N,
20027692,EDF ENERGY,277.84,Temporary Accommodation,Electricity,14-Dec-21,2122/09,LGE,N,
20027692,EDF ENERGY,"4,648.87",Tenancy Services,Electricity,14-Dec-21,2122/09,LGE,N,
20027692,EDF ENERGY,6.68,Wenham Depot,Electricity,14-Dec-21,2122/09,LGE,N,
20027695,GPC BARCLAYS,"4,938.70",Current Assets,Barclaycard Control,16-Dec-21,2122/09,LGE,Y,21%
20027700,COMPUTERSHARE ,636,Current Assets,ChildCare Vouchers-Control,22-Dec-21,2122/09,LGE,N,
10044749,ACTON PARISH COUNCIL,600,Grants & Contrbns,Contributions & Donations,15-Dec-21,2122/09,SME,N,
10044751,EDWARDSTONE MILLENIUM GREEN TRUST,300,Grants & Contrbns,Contributions & Donations,15-Dec-21,2122/09,SME,N,
10044503,LAVENHAM PARISH COUNCIL,"2,862.14",Sheltered Accommodation,Improvements,02-Dec-21,2122/09,SME,N,
10044634,LAVENHAM PARISH COUNCIL,"4,012.00",CIL Funded REFCUS,Grants,10-Dec-21,2122/09,SME,N,
10044638,LAVENHAM PARISH COUNCIL,"3,429.00",CIL Funded REFCUS,Grants,10-Dec-21,2122/09,SME,N,
10044889,LONG MELFORD PARISH COUNCIL,"1,000.00",Womens Cycle Tour,"Equipment, Tools & Materials",28-Sep-21,2122/09,SME,N,
10044354,NEW ANGLIA LOCAL ENTERPRISE PARTNERSHIP,"16,966.47",Enterprise Zones,Prof & Consultancy Fees,30-Nov-21,2122/09,SME,N,
10044357,NEW ANGLIA LOCAL ENTERPRISE PARTNERSHIP,"18,413.00",Enterprise Zones,Prof & Consultancy Fees,30-Nov-21,2122/09,SME,N,
10044640,ORCHESTRAS LIVE,"2,828.28",Policy & Strategy (H & W),Contributions & Donations,10-Dec-21,2122/09,SME,N,
10044282,SUFFOLK COUNTY COUNCIL,945,Taxi & Private Hire Licensing,Prof & Consultancy Fees,26-Nov-21,2122/09,LGE,N,
10044428,SUFFOLK COUNTY COUNCIL,"7,000.00",Devt Policy & Local Plans,Subscriptions,01-Dec-21,2122/09,LGE,Y,50%
10044429,SUFFOLK COUNTY COUNCIL,"167,892.50",ICT,Major Contracts,01-Dec-21,2122/09,LGE,Y,50%
10044500,SUFFOLK COUNTY COUNCIL,"68,096.32",Trade Waste,Trade Waste Disposal,03-Dec-21,2122/09,LGE,N,
10044526,SUFFOLK COUNTY COUNCIL,"4,995.81",ICT,Photocopying,06-Dec-21,2122/09,LGE,Y,50%
10044609,SUFFOLK COUNTY COUNCIL,"1,505.00",Land Chgs,Contracted Services,08-Dec-21,2122/09,LGE,N,
10044716,SUFFOLK COUNTY COUNCIL,"7,199.80",ICT,Telephone Costs,13-Dec-21,2122/09,LGE,Y,50%
10044734,SUFFOLK COUNTY COUNCIL,"1,020.82",ICT,Contracted Services,14-Dec-21,2122/09,LGE,Y,50%
10044784,SUFFOLK COUNTY COUNCIL,"6,125.00",ICT - CapsUniform,Prof & Consultancy Fees,16-Dec-21,2122/09,LGE,Y,50%
10044785,SUFFOLK COUNTY COUNCIL,495.36,ICT,Computer Equpt Purchases,16-Dec-21,2122/09,LGE,Y,50%
10044802,SUFFOLK COUNTY COUNCIL,"1,500.00",Policy & Strategy (H & W),Contributions & Donations,17-Dec-21,2122/09,LGE,N,
10044803,SUFFOLK COUNTY COUNCIL,"34,581.02",ICT,Computer Equpt Purchases,17-Dec-21,2122/09,LGE,Y,50%
10044364,FENN WRIGHT LLP,"1,350.00",General/Supervision & Mgmt,Prof & Consultancy Fees,30-Nov-21,2122/09,SME,N,
10044266,REED SPECIALIST RECRUITMENT LTD,686.21,Financial Servs,Agency Staff,19-Nov-21,2122/09,LGE,Y,50%
10044267,REED SPECIALIST RECRUITMENT LTD,858.03,Governance,Agency Staff,26-Nov-21,2122/09,LGE,Y,50%
10044268,REED SPECIALIST RECRUITMENT LTD,871.48,Governance,Agency Staff,26-Nov-21,2122/09,LGE,Y,50%
10044269,REED SPECIALIST RECRUITMENT LTD,858.03,Governance,Agency Staff,19-Nov-21,2122/09,LGE,Y,50%
10044470,REED SPECIALIST RECRUITMENT LTD,656.37,Financial Servs,Agency Staff,26-Nov-21,2122/09,LGE,Y,50%
10044471,REED SPECIALIST RECRUITMENT LTD,278.72,Financial Servs,Agency Staff,26-Nov-21,2122/09,LGE,Y,50%
10044472,REED SPECIALIST RECRUITMENT LTD,858.03,Governance,Agency Staff,26-Nov-21,2122/09,LGE,Y,50%
10044473,REED SPECIALIST RECRUITMENT LTD,910.21,Governance,Agency Staff,26-Nov-21,2122/09,LGE,Y,50%
10044474,REED SPECIALIST RECRUITMENT LTD,869.63,Governance,Agency Staff,26-Nov-21,2122/09,LGE,Y,50%
10044654,REED SPECIALIST RECRUITMENT LTD,858.03,Governance,Agency Staff,03-Dec-21,2122/09,LGE,Y,50%
10044655,REED SPECIALIST RECRUITMENT LTD,800.06,Governance,Agency Staff,03-Dec-21,2122/09,LGE,Y,50%
10044656,REED SPECIALIST RECRUITMENT LTD,858.03,Governance,Agency Staff,03-Dec-21,2122/09,LGE,Y,50%
10044798,REED SPECIALIST RECRUITMENT LTD,643.2,Financial Servs,Agency Staff,10-Dec-21,2122/09,LGE,Y,50%
10044800,REED SPECIALIST RECRUITMENT LTD,696.15,Financial Servs,Agency Staff,17-Dec-21,2122/09,LGE,Y,50%
10044805,REED SPECIALIST RECRUITMENT LTD,858.03,Governance,Agency Staff,17-Dec-21,2122/09,LGE,Y,50%
10044806,TRANSLATION & INTERPRETING PROVIDER LTD,"1,339.00",Tenancy Services,Legal Expenses,20-Dec-21,2122/09,SME,N,
10044427,CIVICA UK LIMITED,"13,955.43",Governance,Desktop Software,30-Nov-21,2122/09,LGE,Y,50%
10044675,HADLEIGH UNITED REFORMED CHURCH,"2,875.00",Old School House,Rent Payable,13-Dec-21,2122/09,SME,N,
20027702,GAZPROM ENERGY,201.8,Belle Vue House,Gas,14-Dec-21,2122/09,SME,N,
20027702,GAZPROM ENERGY,66.33,HQ Energy,Gas,14-Dec-21,2122/09,SME,N,
20027702,GAZPROM ENERGY,"3,283.38",Sheltered Accommodation,Gas,14-Dec-21,2122/09,SME,N,
20027702,GAZPROM ENERGY,212.49,Temporary Accommodation,Gas,14-Dec-21,2122/09,SME,N,
10044322,KERNOS CENTRE,804,Suffolk Community Restart Fund,Grants,29-Nov-21,2122/09,SME,N,
10044150,WHYBROW PROPERTY SOLUTIONS LTD,"2,190.91",Building Services,Repairs,19-Nov-21,2122/09,SME,N,
10044151,WHYBROW PROPERTY SOLUTIONS LTD,"2,497.14",Building Services,Repairs,19-Nov-21,2122/09,SME,N,
10044200,WHYBROW PROPERTY SOLUTIONS LTD,"1,968.33",Building Services,Repairs,19-Nov-21,2122/09,SME,N,
10044224,WHYBROW PROPERTY SOLUTIONS LTD,"7,633.22",Building Services,Repairs,24-Nov-21,2122/09,SME,N,
10044225,WHYBROW PROPERTY SOLUTIONS LTD,"3,774.11",Rewiring,Improvements,24-Nov-21,2122/09,SME,N,
10044304,WHYBROW PROPERTY SOLUTIONS LTD,"2,035.00",Building Services,Repairs,03-Sep-21,2122/09,SME,N,
10044309,WHYBROW PROPERTY SOLUTIONS LTD,"4,760.00","Garages, Forecourts & Stores",Improvements,22-Sep-21,2122/09,SME,N,
10044310,WHYBROW PROPERTY SOLUTIONS LTD,"3,634.68","Garages, Forecourts & Stores",Improvements,30-Sep-21,2122/09,SME,N,
10044365,WHYBROW PROPERTY SOLUTIONS LTD,"4,535.98",Mand Disabled Facilities Grant,Grants,30-Nov-21,2122/09,SME,N,
10044455,WHYBROW PROPERTY SOLUTIONS LTD,"15,000.00",Major Imps,Improvements,02-Dec-21,2122/09,SME,N,
10044456,WHYBROW PROPERTY SOLUTIONS LTD,"3,971.07",Council House Adaptions,Improvements,02-Dec-21,2122/09,SME,N,
10044457,WHYBROW PROPERTY SOLUTIONS LTD,"10,262.15",Council House Adaptions,Improvements,02-Dec-21,2122/09,SME,N,
10044149,L A C CLEANING CONTRACTORS LIMITED,"2,725.00",Building Services,Repairs,22-Nov-21,2122/09,SME,N,
10044194,L A C CLEANING CONTRACTORS LIMITED,668,Wenham Depot TDP,General Cleaning,22-Nov-21,2122/09,SME,Y,50%
10044896,L A C CLEANING CONTRACTORS LIMITED,633.33,Sheltered Accommodation,General Cleaning,20-Dec-21,2122/09,SME,N,
10044058,STOWE VETERINARY GROUP,293.99,Animal Welfare Licensing,Prof & Consultancy Fees,15-Nov-21,2122/09,SME,N,
10044520,STOWE VETERINARY GROUP,308.7,Animal Welfare Licensing,Prof & Consultancy Fees,07-Dec-21,2122/09,SME,N,
10044521,STOWE VETERINARY GROUP,275.69,Animal Welfare Licensing,Prof & Consultancy Fees,07-Dec-21,2122/09,SME,N,
10044596,ORSIS UK LTD,"6,412.50",PV Panels,Contracted Services,09-Dec-21,2122/09,SME,N,
10044339,NEDGING WITH NAUGHTON VILLAGE HALL & COM,"2,617.03",Comm Devt Grants,Grants,29-Nov-21,2122/09,SME,N,
10044377,DALROD (UK) LTD,900,Chilton Depot,Grounds & Site Maintenance,01-Dec-21,2122/09,SME,Y,50%
10044303,OPUS PEOPLE SOLUTIONS LTD,"1,083.25",Current Liabilities,Agency Staff Holding A/C,25-Nov-21,2122/09,SME,Y,17.50%
10044530,OPUS PEOPLE SOLUTIONS LTD,"1,519.15",Current Liabilities,Agency Staff Holding A/C,02-Dec-21,2122/09,SME,Y,13%
10044690,OPUS PEOPLE SOLUTIONS LTD,"1,149.59",Current Liabilities,Agency Staff Holding A/C,09-Dec-21,2122/09,SME,N,
10044813,OPUS PEOPLE SOLUTIONS LTD,"1,096.94",Current Liabilities,Agency Staff Holding A/C,16-Dec-21,2122/09,SME,N,
10044399,ECOSYSTEMS TREE & GROUNDS CARE,"2,400.00",Public Tree Programme,Tree felling/maintenance,02-Dec-21,2122/09,SME,N,
10044485,ECOSYSTEMS TREE & GROUNDS CARE,535,Chilton Depot,Grounds & Site Maintenance,05-Dec-21,2122/09,SME,Y,50%
10044487,ECOSYSTEMS TREE & GROUNDS CARE,300,Public Tree Programme,Tree felling/maintenance,05-Dec-21,2122/09,SME,N,
10044488,ECOSYSTEMS TREE & GROUNDS CARE,"2,140.00",Tenancy Services,Tree felling/maintenance,05-Dec-21,2122/09,SME,N,
10044491,ECOSYSTEMS TREE & GROUNDS CARE,"2,120.00",CCTV Cameras,"Equipment, Tools & Materials",05-Dec-21,2122/09,SME,N,
10044492,ECOSYSTEMS TREE & GROUNDS CARE,350,Amenity Areas,Tree felling/maintenance,05-Dec-21,2122/09,SME,N,
10044285,CORNERSTONE BARRISTERS,675,Devt Policy & Local Plans,Misc Legal Expenses,23-Nov-21,2122/09,SME,Y,50%
10044669,CORNERSTONE BARRISTERS,"43,000.00",Devt Policy & Local Plans,Misc Legal Expenses,25-Oct-21,2122/09,SME,Y,50%
10044376,VERTAS GROUP LTD,"5,733.20",Central Postal Serv,Postage,30-Nov-21,2122/09,SME,Y,50%
10044418,VERTAS GROUP LTD,257.72,Endeavour House - HQ,Plant & Vehicle - Other costs,30-Nov-21,2122/09,SME,Y,50%
10044145,COLLINS SKIP HIRE,541.66,Building Services,Waste Disposal,22-Nov-21,2122/09,SME,Y,50%
10044275,COLLINS SKIP HIRE,812.49,Building Services,Waste Disposal,29-Nov-21,2122/09,SME,Y,50%
10044496,COLLINS SKIP HIRE,270.83,Building Services,Waste Disposal,06-Dec-21,2122/09,SME,Y,50%
10044670,COLLINS SKIP HIRE,541.66,Building Services,Waste Disposal,13-Dec-21,2122/09,SME,Y,50%
10044498,4PRINCIPLES CONSTRUCTION LTD,"3,751.83",Mand Disabled Facilities Grant,Grants,06-Dec-21,2122/09,SME,N,
10044649,4PRINCIPLES CONSTRUCTION LTD,"5,352.57",Mand Disabled Facilities Grant,Grants,10-Dec-21,2122/09,SME,N,
10044361,MATT ALLMAN LTD T/A MOVEITCLEARITFINDIT,487.5,Homelessness Private Sector,Removal Expenses,30-Nov-21,2122/09,SME,N,
10044792,BIRKETTS LLP,"1,703.00",Devt Management -Applications,Legal ex App proj&pre-decn adv,21-Oct-21,2122/09,LGE,N,
10044221,"DUNCAN, CAMERON AND HUTCHINSON LTD","90,250.00","11-12 Ipswich, Brantham",Major Contracts,19-Nov-21,2122/09,SME,N,
10044758,SUFFOLK MARKET EVENTS,416.56,RHSSF,"Equipment, Tools & Materials",16-Dec-21,2122/09,SME,Y,50%
10044758,SUFFOLK MARKET EVENTS,416.74,Innovate Local SIGIF,Misc Supplies & Services Costs,16-Dec-21,2122/09,SME,Y,50%
10044758,SUFFOLK MARKET EVENTS,166.7,BRRP-MarketTownVision&Invest,Prof & Consultancy Fees,16-Dec-21,2122/09,SME,Y,50%
10044761,ADVANCE SUPPLIES,"1,032.90",Temporary Accommodation,Cleaning Materials,15-Dec-21,2122/09,SME,N,
10044899,ADVANCE SUPPLIES,331.34,Open Spaces,Cleaning Materials,17-Dec-21,2122/09,SME,N,
10044368,PRESTON ST MARY VILLAGE HALL COMMITTEE,"11,650.30",CIL Funded REFCUS,Grants,01-Dec-21,2122/09,SME,N,
10044872,PRESTON ST MARY VILLAGE HALL COMMITTEE,"2,543.04",Comm Devt Grants,Grants,21-Dec-21,2122/09,SME,N,
10044323,HAYS SPECIALIST RECRUITMENT LTD,"1,162.14",HRA Accountancy,Agency Staff,29-Nov-21,2122/09,LGE,Y,50%
10044324,HAYS SPECIALIST RECRUITMENT LTD,"1,053.67",HRA Accountancy,Agency Staff,29-Nov-21,2122/09,LGE,Y,50%
10044388,HAYS SPECIALIST RECRUITMENT LTD,"1,030.44",HRA Accountancy,Agency Staff,01-Dec-21,2122/09,LGE,Y,50%
10044536,HAYS SPECIALIST RECRUITMENT LTD,896,Financial Servs,Agency Staff,07-Dec-21,2122/09,LGE,Y,50%
10044536,HAYS SPECIALIST RECRUITMENT LTD,"1,374.00",HRA Accountancy,Agency Staff,07-Dec-21,2122/09,LGE,Y,50%
10044537,HAYS SPECIALIST RECRUITMENT LTD,"1,890.00",Financial Servs,Agency Staff,07-Dec-21,2122/09,LGE,Y,50%
10044538,HAYS SPECIALIST RECRUITMENT LTD,"1,890.00",Financial Servs,Agency Staff,07-Dec-21,2122/09,LGE,Y,50%
10044589,HAYS SPECIALIST RECRUITMENT LTD,448,Financial Servs,Agency Staff,08-Dec-21,2122/09,LGE,Y,50%
10044589,HAYS SPECIALIST RECRUITMENT LTD,672,HRA Accountancy,Agency Staff,08-Dec-21,2122/09,LGE,Y,50%
10044603,HAYS SPECIALIST RECRUITMENT LTD,"1,162.14",HRA Accountancy,Agency Staff,09-Dec-21,2122/09,LGE,Y,50%
10044653,HAYS SPECIALIST RECRUITMENT LTD,"1,512.00",Financial Servs,Agency Staff,10-Dec-21,2122/09,LGE,Y,50%
10044730,HAYS SPECIALIST RECRUITMENT LTD,"1,120.00",Financial Servs,Agency Staff,14-Dec-21,2122/09,LGE,Y,50%
10044730,HAYS SPECIALIST RECRUITMENT LTD,"1,680.00",HRA Accountancy,Agency Staff,14-Dec-21,2122/09,LGE,Y,50%
10044755,HAYS SPECIALIST RECRUITMENT LTD,"1,239.61",HRA Accountancy,Agency Staff,15-Dec-21,2122/09,LGE,Y,50%
10044756,HAYS SPECIALIST RECRUITMENT LTD,"1,701.00",Financial Servs,Agency Staff,15-Dec-21,2122/09,LGE,Y,50%
10044848,HAYS SPECIALIST RECRUITMENT LTD,896,Financial Servs,Agency Staff,20-Dec-21,2122/09,LGE,Y,50%
10044848,HAYS SPECIALIST RECRUITMENT LTD,"1,344.00",HRA Accountancy,Agency Staff,20-Dec-21,2122/09,LGE,Y,50%
10044912,HAYS SPECIALIST RECRUITMENT LTD,"1,890.00",Financial Servs,Agency Staff,22-Dec-21,2122/09,LGE,Y,50%
10044723,RICHARD UTTING ASSOCIATES LLP,"1,889.18",Waldingfield Rd S106 Andersons,Prof & Consultancy Fees,30-Nov-21,2122/09,SME,N,
10044786,RICHARD UTTING ASSOCIATES LLP,602.24,New Bld/acquisition,Purchase of Land & Buildings,17-Dec-21,2122/09,SME,N,
10044786,RICHARD UTTING ASSOCIATES LLP,432.76,"Wolsey Grange, Sproughton S106",Prof & Consultancy Fees,17-Dec-21,2122/09,SME,N,
10044793,RICHARD UTTING ASSOCIATES LLP,"2,890.00",Bourne Hill Wherstead S106 acq,Prof & Consultancy Fees,17-Dec-21,2122/09,SME,N,
10044747,IDVERDE LIMITED,"10,729.05",Amenity Areas,Grds Maint Contract,15-Dec-21,2122/09,SME,N,
10044747,IDVERDE LIMITED,239.74,C Parks General,Grds Maint Contract,15-Dec-21,2122/09,SME,N,
10044747,IDVERDE LIMITED,45.82,Chilton Depot,Grds Maint Contract,15-Dec-21,2122/09,SME,Y,50%
10044747,IDVERDE LIMITED,312.8,Hadl C Parks,Grds Maint Contract,15-Dec-21,2122/09,SME,N,
10044747,IDVERDE LIMITED,3.32,Hadl Market,Grds Maint Contract,15-Dec-21,2122/09,SME,N,
10044747,IDVERDE LIMITED,63.75,Industrial Estates,Grds Maint Contract,15-Dec-21,2122/09,SME,N,
10044747,IDVERDE LIMITED,134.82,Kingfisher Leisure Centre,Grds Maint Contract,15-Dec-21,2122/09,SME,N,
10044747,IDVERDE LIMITED,107.58,Nyld & Sprtn Clsd Burial Grds,Grds Maint Contract,15-Dec-21,2122/09,SME,N,
10044747,IDVERDE LIMITED,"22,857.87",Open Spaces,Grds Maint Contract,15-Dec-21,2122/09,SME,N,
10044747,IDVERDE LIMITED,17.27,Pin Mill C Park,Grds Maint Contract,15-Dec-21,2122/09,SME,N,
10044747,IDVERDE LIMITED,"2,510.32",Public Conveniences,Grds Maint Contract,15-Dec-21,2122/09,SME,N,
10044747,IDVERDE LIMITED,13.86,Sewage Treatment Works,Grds Maint Contract,15-Dec-21,2122/09,SME,N,
10044747,IDVERDE LIMITED,582.64,Sheltered Accommodation,Grds Maint Contract,15-Dec-21,2122/09,SME,N,
10044747,IDVERDE LIMITED,"28,176.60",Street & Major Road Cleansing,Grds Maint Contract,15-Dec-21,2122/09,SME,N,
10044747,IDVERDE LIMITED,614.96,Sudb C Parks,Grds Maint Contract,15-Dec-21,2122/09,SME,N,
10044452,MANSION HOUSE PUBLISHING LTD,262.5,RHSSF,Advertising&mkting (non-staff),29-Nov-21,2122/09,SME,N,
10044370,PUBLIC SEWER SERVICES,"1,653.08",Estate Imps/parking areas,Improvements,30-Nov-21,2122/09,SME,N,
10044371,PUBLIC SEWER SERVICES,921.86,Building Services,Repairs,30-Nov-21,2122/09,SME,N,
10044682,PUBLIC SEWER SERVICES,"1,101.97",Building Services,Repairs,30-Nov-21,2122/09,SME,N,
10044328,PRIVATE LANDLORD,650,Guaranteed Rent Scheme,Rent Payable,30-Nov-21,2122/09,SME,N,
10044168,ASPECT CONTRACTS LTD,"3,212.00",Asbestos,Improvements,12-Nov-21,2122/09,LGE,N,
10044726,ASPECT CONTRACTS LTD,"7,710.00",Asbestos,Improvements,14-Dec-21,2122/09,LGE,N,
20027682,RIX PETROLEUM (EAST ANGLIA) LTD,"2,056.81",Tenancy Services,Heating Oil,02-Dec-21,2122/09,SME,N,
10044219,SUDBURY PRINT GROUP LTD,261,General/Supervision & Mgmt,Contracted Services,24-Aug-21,2122/09,SME,Y,50%
10044517,KNOWLES ASSOCIATES TFM LTD,"48,853.06",Vehicle and Plant Renewals,Plant & Vehicle - Purchase,11-Nov-21,2122/09,SME,N,
10044177,NORTHUMBRIAN WATER LTD,63.05,Chilton Depot,Legionella Testing,24-Nov-21,2122/09,LGE,Y,50%
10044177,NORTHUMBRIAN WATER LTD,34.15,HQ Energy,Legionella Testing,24-Nov-21,2122/09,LGE,N,
10044177,NORTHUMBRIAN WATER LTD,28.9,Old School House,Legionella Testing,24-Nov-21,2122/09,LGE,N,
10044177,NORTHUMBRIAN WATER LTD,202.31,Public Conveniences,Legionella Testing,24-Nov-21,2122/09,LGE,N,
10044177,NORTHUMBRIAN WATER LTD,28.9,Responsive maintenance,Legionella Testing,24-Nov-21,2122/09,LGE,N,
10044177,NORTHUMBRIAN WATER LTD,266.38,Sheltered Accommodation,Legionella Testing,24-Nov-21,2122/09,LGE,N,
10044177,NORTHUMBRIAN WATER LTD,63.05,Temporary Accommodation,Legionella Testing,24-Nov-21,2122/09,LGE,N,
10044177,NORTHUMBRIAN WATER LTD,18.9,Wenham Depot,Legionella Testing,24-Nov-21,2122/09,LGE,Y,50%
10044393,AIRMAX REMOTE LTD,441.61,Building Services,Plant & Vehicle - Other costs,30-Nov-21,2122/09,SME,Y,50%
10044900,RESIDENTIALLY CHARTERED SURVEYORS,900,"11-12 Ipswich, Brantham",Prof & Consultancy Fees,13-Dec-21,2122/09,SME,N,
10044815,TOP FLOORS (EAST ANGLIA) LTD,"1,455.30",Other HRA Temp Accommodation,"Equipment, Tools & Materials",08-Dec-21,2122/09,SME,N,
10044707,SUDBURYS,440,Guaranteed Rent Scheme,Rent Payable,14-Dec-21,2122/09,SME,N,
10044618,ICENI,"1,269.00","1-3 Queensland, Shotley",Prof & Consultancy Fees,09-Dec-21,2122/09,SME,N,
10044619,ICENI,"1,097.53","11-12 Ipswich, Brantham",Prof & Consultancy Fees,09-Dec-21,2122/09,SME,N,
10044620,ICENI,"4,375.39",Bourne Hill Wherstead S106 acq,Prof & Consultancy Fees,09-Dec-21,2122/09,SME,N,
10044524,WILLIAM H BROWN ESTATE AGENTS - SUDBURY,725,Guaranteed Rent Scheme,Rent Payable,07-Dec-21,2122/09,SME,N,
10044604,ABBEYCROFT LEISURE,"1,068.00",Policy & Strategy (H & W),Contributions & Donations,09-Dec-21,2122/09,LGE,N,
10044696,ABBEYCROFT LEISURE,470,Hadleigh Pool,Repairs,14-Sep-21,2122/09,LGE,N,
10044704,BELLWAY HOMES LIMITED (ESSEX DIVISION),"69,318.82",Bourne Hill Wherstead S106 acq,Prof & Consultancy Fees,08-Dec-21,2122/09,LGE,N,
10044740,A C LEIGH (NORWICH) LTD,539.59,Building Services,"Equipment, Tools & Materials",10-Dec-21,2122/09,SME,N,
10044545,CAROLE CREASEY,"1,000.00",RHSSF,Prof & Consultancy Fees,10-Oct-21,2122/09,ST,N,
10044659,3 POINT PROPERTY MANAGEMENT LTD,550,Guaranteed Rent Scheme,Rent Payable,13-Dec-21,2122/09,SME,N,
10044280,COOKS BLIND AND SHUTTERS LTD,532,Creeting Rd Depot,Grounds & Site Maintenance,29-Nov-21,2122/09,SME,Y,50%
10044789,WEST SUFFOLK COUNCIL,500,Community Safety-CCTV,"Equipment, Tools & Materials",14-Dec-21,2122/09,LGE,N,
10044797,WEST SUFFOLK COUNCIL,"56,500.00",COVID Housing Fund,Misc Supplies & Services Costs,20-Dec-21,2122/09,LGE,N,
10044876,EAST SUFFOLK COUNCIL,"2,500.00",Independent Living Service,Contributions & Donations,20-Dec-21,2122/09,LGE,N,
10044463,RIGHT 2 WRITE LTD,415,Organisational Devt,Health & Safety Training,01-Dec-21,2122/09,SME,Y,50%
10044332,APTL ENTERPRISES LTD,"4,648.00",PV Panels,Contracted Services,30-Nov-21,2122/09,SME,Y,44%
10044333,APTL ENTERPRISES LTD,"3,652.00",PV Panels,Contracted Services,30-Nov-21,2122/09,SME,Y,44%
10044363,WASHCO LTD,295.25,Temporary Accommodation,Repairs,05-Jul-21,2122/09,SME,N,
20027689,ANGLIAN WATER BUS (NAT) LTD T/A WAVE,26.35,General Rechargeable Works,Misc Supplies & Services Costs,12-Dec-21,2122/09,LGE,N,
20027689,ANGLIAN WATER BUS (NAT) LTD T/A WAVE,52.93,HQ Energy,Water Rates - Metered,12-Dec-21,2122/09,LGE,N,
20027689,ANGLIAN WATER BUS (NAT) LTD T/A WAVE,617.83,Chilton Depot,Water Rates - Metered,12-Dec-21,2122/09,LGE,Y,50%
20027689,ANGLIAN WATER BUS (NAT) LTD T/A WAVE,81.58,Old School House,Water Rates - Metered,12-Dec-21,2122/09,LGE,N,
20027689,ANGLIAN WATER BUS (NAT) LTD T/A WAVE,626.41,Public Conveniences,Water Rates - Metered,12-Dec-21,2122/09,LGE,N,
20027689,ANGLIAN WATER BUS (NAT) LTD T/A WAVE,78.4,C Parks General,Water Rates - Metered,12-Dec-21,2122/09,LGE,N,
20027689,ANGLIAN WATER BUS (NAT) LTD T/A WAVE,3.93,Friars Meadow Sudb,Water Rates - Metered,12-Dec-21,2122/09,LGE,N,
20027689,ANGLIAN WATER BUS (NAT) LTD T/A WAVE,"1,135.96",Sheltered Accommodation,Water Rates - Metered,12-Dec-21,2122/09,LGE,N,
20027689,ANGLIAN WATER BUS (NAT) LTD T/A WAVE,41.02,Temporary Accommodation,Water Rates - Other Charges,12-Dec-21,2122/09,LGE,N,
20027689,ANGLIAN WATER BUS (NAT) LTD T/A WAVE,118.47,Tenancy Services,Water Rates - Metered,12-Dec-21,2122/09,LGE,N,
20027689,ANGLIAN WATER BUS (NAT) LTD T/A WAVE,16.04,Tenancy Services,Water Rates - Unmetered,12-Dec-21,2122/09,LGE,N,
20027696,IMSERV EUROPE LTD,426.22,Climate Change and Sustainabil,Electricity,17-Dec-21,2122/09,LGE,N,
10044823,SUDBURY IN BLOOM,500,Grants & Contrbns,Contributions & Donations,20-Dec-21,2122/09,SME,N,
10044501,STUDLEY CAPITAL LIMITED,"3,600.00","BRRP-Hamilton,Boreham&BelleVue",Prof & Consultancy Fees,06-Dec-21,2122/09,ST,N,
10044648,HOLBROOK VILLAGE HALL,"1,000.00",Grants & Contrbns,Contributions & Donations,10-Dec-21,2122/09,SME,N,
10044372,TIAA LTD,"4,275.50",Internal Audit,Contracted Services,01-Dec-21,2122/09,SME,Y,50%
20027686,BYCHOICE LTD,"1,490.39",Rent Deposit Scheme,Misc Premises Costs,07-Dec-21,2122/09,SME,N,
10044851,REEFER PROPERTIES LTD,695,Guaranteed Rent Scheme,Rent Payable,21-Dec-21,2122/09,SME,N,
10044594,SPRYTAR LTD,"1,666.67",RHSSF,Advertising&mkting (non-staff),07-Dec-21,2122/09,SME,N,
10044748,STOUR VALLEY CARPETS & FLOORING,"3,000.00",Waldingfield Rd S106 Andersons,Prof & Consultancy Fees,16-Dec-21,2122/09,SME,N,
10044201,WADDINGTON BROWN LTD,"1,258.97",Organisational Devt,Agency Staff,22-Nov-21,2122/09,SME,Y,50%
10044202,WADDINGTON BROWN LTD,957.6,Organisational Devt,Agency Staff,22-Nov-21,2122/09,SME,Y,50%
10044203,WADDINGTON BROWN LTD,562.95,Organisational Devt,Agency Staff,22-Nov-21,2122/09,SME,Y,50%
10044367,WADDINGTON BROWN LTD,375.3,Organisational Devt,Agency Staff,29-Nov-21,2122/09,SME,Y,50%
10044629,WADDINGTON BROWN LTD,562.95,Organisational Devt,Agency Staff,06-Dec-21,2122/09,SME,Y,50%
10044744,WADDINGTON BROWN LTD,562.95,Organisational Devt,Agency Staff,13-Dec-21,2122/09,SME,Y,50%
10044886,WADDINGTON BROWN LTD,750.6,Organisational Devt,Agency Staff,20-Dec-21,2122/09,SME,Y,50%
10044460,GRYPHON FIRST AID UNIT,475,Grants & Contrbns,Contributions & Donations,03-Dec-21,2122/09,SME,N,
10044325,PRIVATE LANDLORD,490,Guaranteed Rent Scheme,Rent Payable,30-Nov-21,2122/09,SME,N,
10044858,PRIVATE LANDLORD,490,Guaranteed Rent Scheme,Rent Payable,21-Dec-21,2122/09,SME,N,
10044765,BRANDON WETROOMS,"6,339.77",Mand Disabled Facilities Grant,Grants,16-Dec-21,2122/09,SME,N,
10044646,LAVENHAM COMMUNITY LAND TRUST,550,Grants & Contrbns,Contributions & Donations,10-Dec-21,2122/09,SME,N,
10044489,PRIVATE LANDLORD,650,Guaranteed Rent Scheme,Rent Payable,06-Dec-21,2122/09,ST,N,
10044661,PRIVATE LANDLORD,650,Guaranteed Rent Scheme,Rent Payable,13-Dec-21,2122/09,SME,N,
10044820,BRANCHLINES,350,Grants & Contrbns,Contributions & Donations,20-Dec-21,2122/09,SME,N,
10044662,PRIVATE LANDLORD,"1,198.00",Guaranteed Rent Scheme,Rent Payable,13-Dec-21,2122/09,ST,N,
10043843,CAPITA BUSINESS SERVICES LTD (PAY360),"1,950.00",ICT-Hardware/Software Refresh,Desktop Software,05-Nov-21,2122/09,LGE,Y,50%
10043846,CAPITA BUSINESS SERVICES LTD (PAY360),"25,175.00",ICT costs rltd to Jnt wkg w/MS,Desktop Software,05-Nov-21,2122/09,LGE,Y,50%
10044238,CAPITA BUSINESS SERVICES LTD (PAY360),"4,270.98",Bank Chgs,Bank Charges,25-Nov-21,2122/09,LGE,N,
10044600,CAPITA BUSINESS SERVICES LTD (PAY360),"1,267.82",Bank Chgs,Bank Charges,09-Dec-21,2122/09,LGE,N,
10044632,CAPITA BUSINESS SERVICES LTD (PAY360),"3,638.02",Bank Chgs,Bank Charges,09-Dec-21,2122/09,LGE,N,
10044331,SEQUENCE UK LTD (WILLIAM H BROWN),700,Guaranteed Rent Scheme,Rent Payable,30-Nov-21,2122/09,LGE,N,
10044860,SEQUENCE UK LTD (WILLIAM H BROWN),700,Guaranteed Rent Scheme,Rent Payable,21-Dec-21,2122/09,LGE,N,
10044568,PRIVATE LANDLORD,458.33,Guaranteed Rent Scheme,Contracted Services,08-Dec-21,2122/09,ST,N,
10044330,PRIVATE LANDLORD,700,Guaranteed Rent Scheme,Rent Payable,30-Nov-21,2122/09,ST,N,
10044859,PRIVATE LANDLORD,700,Guaranteed Rent Scheme,Rent Payable,21-Dec-21,2122/09,ST,N,
10044326,PRIVATE LANDLORD,490,Guaranteed Rent Scheme,Rent Payable,30-Nov-21,2122/09,SME,N,
10044153,AMPLIS CONSTRUCTION LTD,"36,783.59","Fences, Gates and Walls",Major Contracts,22-Nov-21,2122/09,SME,N,
10044183,AMPLIS CONSTRUCTION LTD,657.85,Building Services,Repairs,22-Nov-21,2122/09,SME,N,
10044519,AMPLIS CONSTRUCTION LTD,"3,363.73",Major Imps,Improvements,07-Dec-21,2122/09,SME,N,
10044527,AMPLIS CONSTRUCTION LTD,869,Building Services,Repairs,07-Dec-21,2122/09,SME,N,
10044490,PRIVATE LANDLORD,786.5,Guaranteed Rent Scheme,Rent Payable,06-Dec-21,2122/09,ST,N,
10044613,STUDENT LIFE,"1,000.00",Policy & Strategy (H & W),Contributions & Donations,08-Dec-21,2122/09,SME,N,
10044352,DAVID BURR (LONG MELFORD) LTD,"2,000.00",HRA Other Capital Receipts,Prof & Consultancy Fees,23-Nov-21,2122/09,SME,N,
10044706,PRIVATE LANDLORD,650,Guaranteed Rent Scheme,Rent Payable,14-Dec-21,2122/09,ST,N,
10044394,CORENERGY LIMITED,"14,000.00",Public Sector Decarbonisation,Contracted Services,30-Nov-21,2122/09,SME,N,
10044673,ANDERSON DESIGN & BUILD LIMITED,"119,705.82",Waldingfield Rd S106 Andersons,Prof & Consultancy Fees,25-Nov-21,2122/09,SME,N,
10044348,DGL QUALITY MANAGEMENT LTD,560,"11-12 Ipswich, Brantham",Prof & Consultancy Fees,30-Nov-21,2122/09,SME,N,
10044732,TRUETECH INTEGRATED LTD,"5,628.25",CCTV Cameras,"Equipment, Tools & Materials",15-Dec-21,2122/09,SME,N,
10044494,PRIVATE LANDLORD,650,Guaranteed Rent Scheme,Rent Payable,06-Dec-21,2122/09,ST,N,
10044497,PRIVATE LANDLORD,800,Guaranteed Rent Scheme,Rent Payable,06-Dec-21,2122/09,SME,N,
10044410,ARAN INSULATION LTD,"56,743.47",Insulation Imps,Major Contracts,02-Dec-21,2122/09,SME,N,
10044691,ARAN INSULATION LTD,"4,003.26",Insulation Imps,Improvements,13-Dec-21,2122/09,SME,N,
10044769,ARAN INSULATION LTD,251,Building Services,Repairs,16-Dec-21,2122/09,SME,N,
10044769,ARAN INSULATION LTD,158.5,Insulation Imps,Improvements,16-Dec-21,2122/09,SME,N,
10044705,PRIVATE LANDLORD,550,Guaranteed Rent Scheme,Rent Payable,14-Dec-21,2122/09,ST,N,
10044554,NWES PROPERTY SERVICES LTD,620,Major Imps,Rent Payable,01-Dec-21,2122/09,SME,N,
10044327,PRIVATE LANDLORD,"1,200.00",Guaranteed Rent Scheme,Rent Payable,30-Nov-21,2122/09,SME,N,
10044329,PRIVATE LANDLORD,550,Guaranteed Rent Scheme,Rent Payable,30-Nov-21,2122/09,ST,N,
10044857,PRIVATE LANDLORD,550,Guaranteed Rent Scheme,Rent Payable,21-Dec-21,2122/09,ST,N,
10044375,IPSERV LTD,304.5,Communications,Commercial Printing,01-Dec-21,2122/09,SME,N,
10044375,IPSERV LTD,95.5,Central Printing,Commercial Printing,01-Dec-21,2122/09,SME,N,
10044512,SSE,"1,114.52",Homeless Prevention Fund,Misc Supplies & Services Costs,13-Jan-21,2122/09,LGE,N,
10044513,SSE,"1,101.96",Homeless Prevention Fund,Misc Supplies & Services Costs,06-Dec-21,2122/09,LGE,N,
10044788,AGENTS MUTUAL LTD,645,"Angel Court, Hadleigh",Prof & Consultancy Fees,30-Nov-21,2122/09,SME,N,
10044523,DAVID BURR LETTINGS,700,Guaranteed Rent Scheme,Rent Payable,07-Dec-21,2122/09,SME,N,
10044057,SRL TECHNICAL SERVICES LTD,"2,025.00",Public Sector Decarbonisation,Prof & Consultancy Fees,29-Oct-21,2122/09,SME,N,
10044276,FOURWAYS VEHICLE SOLUTIONS LTD,511,Building Services,Lease Cars - Payment,26-Oct-21,2122/09,SME,Y,50%
10044277,FOURWAYS VEHICLE SOLUTIONS LTD,511,Building Services,Lease Cars - Payment,22-Nov-21,2122/09,SME,Y,50%
10044464,FOURWAYS VEHICLE SOLUTIONS LTD,511,Building Services,Lease Cars - Payment,29-Nov-21,2122/09,SME,Y,50%
10044592,START AFRESH CLEANING LTD,485.5,Street & Major Road Cleansing,General Cleaning,30-Nov-21,2122/09,SME,N,
10044593,START AFRESH CLEANING LTD,568.17,Street & Major Road Cleansing,General Cleaning,30-Nov-21,2122/09,SME,N,
10044381,REGENCY GUARDING & EVENTS LTD,600,Open Spaces,Contracted Services,01-Dec-21,2122/09,SME,N,
10044660,PRIVATE LANDLORD,715,Guaranteed Rent Scheme,Rent Payable,13-Dec-21,2122/09,SME,N,
10044390,BADENOCH & CLARK LTD,"2,440.00",Commissioning & Procurement,Agency Staff,30-Nov-21,2122/09,SME,Y,50%
10044637,BADENOCH & CLARK LTD,"2,440.00",Commissioning & Procurement,Agency Staff,09-Dec-21,2122/09,SME,Y,50%
10044708,BADENOCH & CLARK LTD,"2,440.00",Commissioning & Procurement,Agency Staff,13-Dec-21,2122/09,SME,Y,50%
10044897,BADENOCH & CLARK LTD,"2,440.00",Commissioning & Procurement,Agency Staff,20-Dec-21,2122/09,SME,Y,50%
10044260,PIXEL FINANCIAL MANAGEMENT LTD,"1,000.00",Financial Servs,Subscriptions,12-Oct-21,2122/09,SME,Y,50%
10044478,SHJ HOMES LTD,500,Guaranteed Rent Scheme,Rent Payable,06-Dec-21,2122/09,SME,N,
10044698,THE WEIGEL CLINIC LTD,380,Organisational Devt,Contracted Services,06-Dec-21,2122/09,SME,Y,50%
10044321,SHEPHERD DRIVE BAPTIST CHURCH,"15,000.00",Comm Devt Grants,Grants,29-Nov-21,2122/09,SME,N,
10044861,BOURNE & CO PROPERTY LET & MANAGE LTD,525,Guaranteed Rent Scheme,Rent Payable,21-Dec-21,2122/09,SME,N,
10044335,PRIVATE LANDLORD,"1,550.00",Guaranteed Rent Scheme,Rent Payable,29-Nov-21,2122/09,ST,N,
10044663,PRIVATE LANDLORD,500,Guaranteed Rent Scheme,Rent Payable,13-Dec-21,2122/09,ST,N,
10044454,METRIC GROUP LTD,"11,696.25",Pld Maint/ Enhncmts-C Parks,"Equipment, Tools & Materials",02-Dec-21,2122/09,SME,N,
10044766,NATIONAL PET COLLEGE,600,Organisational Devt,Training,13-Dec-21,2122/09,SME,Y,50%
10044312,KEYS REMOVALS LTD,569.44,Homelessness Private Sector,Removal Expenses,29-Nov-21,2122/09,SME,N,
10044724,SCREENPRINT & DISPLAY LTD,837.51,RHSSF,Advertising&mkting (non-staff),13-Dec-21,2122/09,SME,N,
10044362,UNITY CROQUET CLUB TRUST,"1,305.00",Suffolk Community Restart Fund,Grants,01-Dec-21,2122/09,SME,N,
10044391,LILAC HOUSE PROPERTY LTD,"5,968.80",Renovation/Home Repair Grants,Grants,02-Dec-21,2122/09,SME,N,
10044631,FOOTBALL FUN FACTORY (FRANCHISING) LTD,"3,120.00",Holiday Activity Funding,"Equipment, Tools & Materials",10-Dec-21,2122/09,SME,N,
10044722,ANGLIA SPORTS MANAGEMENT LTD,"1,600.00",Holiday Activity Funding,"Equipment, Tools & Materials",14-Dec-21,2122/09,SME,N,
20027688,HSM HOMES LTD,"1,184.61",Rent Deposit Scheme,Misc Premises Costs,10-Dec-21,2122/09,SME,N,
20027688,HSM HOMES LTD,250,Rent Deposit Scheme,Misc Supplies & Services Costs,10-Dec-21,2122/09,SME,N,
10044877,ALTON BELLES WOMENS INSTITUTE,369.86,Suffolk Community Restart Fund,Grants,21-Dec-21,2122/09,SME,N,
20027690,PRIVATE LANDLORD,791.66,Rent Deposit Scheme,Misc Premises Costs,13-Dec-21,2122/09,ST,N,
10044725,HIVE,"2,000.00",Grants & Contrbns,Contributions & Donations,14-Dec-21,2122/09,SME,N,
10044880,GLEMSFORD ANGELS,414.83,Grants & Contrbns,Grants,21-Dec-21,2122/09,SME,N,
10044916,THE ORCHARD PLAYERS,"2,400.00",Suffolk Community Restart Fund,Grants,23-Dec-21,2122/09,SME,N,
10044782,NORTHERN HOUSING CONSORTIUM,-301.23,General/Supervision & Mgmt,Subscriptions,10-Dec-21,2122/09,SME,N,
